Body,Body name,Date,Transaction number,Amount,Supplier name,Supplier ID,Expense area,Fund type,Expense type
names-and-codes-for-administrative-geography/index,Thanet District Council,08/01/2013,328928,482.33,Adecco Uk Ltd,ADE005,Director of Corporate Services and Transformation,Revenue,Employees
names-and-codes-for-administrative-geography/index,Thanet District Council,08/01/2013,328929,604.95,Adecco Uk Ltd,ADE005,Director of Corporate Services and Transformation,Revenue,Employees
names-and-codes-for-administrative-geography/index,Thanet District Council,08/01/2013,329022,1768.50,Advanced Business Solutions,COA011,Director of Corporate Services and Transformation,Revenue,Supplies and Services
names-and-codes-for-administrative-geography/index,Thanet District Council,08/01/2013,329023,1142.01,Advanced Business Solutions,COA011,Director of Corporate Services and Transformation,Revenue,Supplies and Services
names-and-codes-for-administrative-geography/index,Thanet District Council,08/01/2013,328498,955.56,Air Products Plc,AIR014,Director of Operational Services,Revenue,Premises Related Expenditure
names-and-codes-for-administrative-geography/index,Thanet District Council,08/01/2013,328924,290.00,Airport Connections,AIR008,Director of Community Services,Revenue,Transport Related Expenditure
names-and-codes-for-administrative-geography/index,Thanet District Council,08/01/2013,329057,2031.00,All Sign Solutions Ltd,ALL002,Director of Operational Services,Revenue,Premises Related Expenditure
names-and-codes-for-administrative-geography/index,Thanet District Council,08/01/2013,329058,425.00,All Sign Solutions Ltd,ALL002,Director of Operational Services,Revenue,Premises Related Expenditure
names-and-codes-for-administrative-geography/index,Thanet District Council,08/01/2013,329059,350.00,All Sign Solutions Ltd,ALL002,Director of Operational Services,Revenue,Premises Related Expenditure
names-and-codes-for-administrative-geography/index,Thanet District Council,08/01/2013,329030,578.25,Bondsbrook Clothing Ltd,BON010,East Kent Shared Services,Revenue,Supplies and Services
names-and-codes-for-administrative-geography/index,Thanet District Council,08/01/2013,329166,10600.00,Bramling Construction Ltd,BRA020,Director of Corporate Services and Transformation,Balance Sheet,Long Term Assets
names-and-codes-for-administrative-geography/index,Thanet District Council,08/01/2013,328480,1364.00,Bridge Security Cctv Ltd,BRI039,Director of Community Services,Revenue,Supplies and Services
names-and-codes-for-administrative-geography/index,Thanet District Council,08/01/2013,328521,2564.97,Call Flow Solutions Limited,CAL006,Director of Operational Services,Revenue,Supplies and Services
names-and-codes-for-administrative-geography/index,Thanet District Council,08/01/2013,328522,3750.00,Call Flow Solutions Limited,CAL006,Director of Operational Services,Revenue,Supplies and Services
names-and-codes-for-administrative-geography/index,Thanet District Council,08/01/2013,327884,2438.50,Campbell Reith Hill Llp,CAM013,Director of Corporate Services and Transformation,Balance Sheet,Long Term Assets
names-and-codes-for-administrative-geography/index,Thanet District Council,08/01/2013,329024,5591.20,Canterbury Christ Church University,CAN006,Director of Operational Services,Revenue,Premises Related Expenditure
names-and-codes-for-administrative-geography/index,Thanet District Council,08/01/2013,329086,288.72,Channel Commercials Plc,CCO001,Director of Operational Services,Revenue,Transport Related Expenditure
names-and-codes-for-administrative-geography/index,Thanet District Council,08/01/2013,329087,213.19,Channel Commercials Plc,CCO001,Director of Operational Services,Revenue,Transport Related Expenditure
names-and-codes-for-administrative-geography/index,Thanet District Council,08/01/2013,329012,6638.00,Daedalus Environmental Ltd,DAE001,Director of Community Services,Revenue,Supplies and Services
names-and-codes-for-administrative-geography/index,Thanet District Council,08/01/2013,328397,325.86,Dennis Eagle Ltd,DEN005,Director of Operational Services,Revenue,Transport Related Expenditure
names-and-codes-for-administrative-geography/index,Thanet District Council,08/01/2013,329170,5160.00,Dolphin Stairlifts (Kent),DOL003,Director of Corporate Services and Transformation,Balance Sheet,Long Term Assets
names-and-codes-for-administrative-geography/index,Thanet District Council,08/01/2013,329337,1850.00,Dolphin Stairlifts (Kent),DOL003,Director of Corporate Services and Transformation,Balance Sheet,Long Term Assets
names-and-codes-for-administrative-geography/index,Thanet District Council,08/01/2013,328833,336.25,Dover District Council,DOV001,Director of Corporate Services and Transformation,Revenue,Employees
names-and-codes-for-administrative-geography/index,Thanet District Council,08/01/2013,329101,1450.00,Dr D E F Tumath,TUM001,Director of Operational Services,Revenue,Supplies and Services
names-and-codes-for-administrative-geography/index,Thanet District Council,08/01/2013,329100,1275.00,Dr R K Chhabra,CHH001,Director of Operational Services,Revenue,Supplies and Services
names-and-codes-for-administrative-geography/index,Thanet District Council,08/01/2013,329040,1500.00,E K Voluntary Action & Support,EKV001,Director of Community Services,Revenue,Supplies and Services
names-and-codes-for-administrative-geography/index,Thanet District Council,08/01/2013,328493,1703.43,E Saunders Margate Ltd,SAU001,Director of Operational Services,Revenue,Premises Related Expenditure
names-and-codes-for-administrative-geography/index,Thanet District Council,08/01/2013,328829,3925.00,Egbert H Taylor & Company Ltd,TAY005,Director of Operational Services,Revenue,Supplies and Services
names-and-codes-for-administrative-geography/index,Thanet District Council,08/01/2013,329183,224.06,Electoral Reform Services,ELE010,Director of Corporate Services and Transformation,Revenue,Supplies and Services
names-and-codes-for-administrative-geography/index,Thanet District Council,08/01/2013,329184,10963.83,Electoral Reform Services,ELE010,Director of Corporate Services and Transformation,Revenue,Supplies and Services
names-and-codes-for-administrative-geography/index,Thanet District Council,08/01/2013,329089,655.74,Eurogreen,EUR016,Director of Operational Services,Revenue,Transport Related Expenditure
names-and-codes-for-administrative-geography/index,Thanet District Council,08/01/2013,328968,458.50,Evergreen Landscaping Gardening Ltd,EVE004,Director of Operational Services,Revenue,Premises Related Expenditure
names-and-codes-for-administrative-geography/index,Thanet District Council,08/01/2013,329019,180403.75,Facultatieve Technologies,FAC003,Director of Corporate Services and Transformation,Balance Sheet,Long Term Assets
names-and-codes-for-administrative-geography/index,Thanet District Council,08/01/2013,329164,1530.40,Family Mosaic Housing,FAM001,Director of Corporate Services and Transformation,Balance Sheet,Long Term Assets
names-and-codes-for-administrative-geography/index,Thanet District Council,08/01/2013,329167,703.84,Family Mosaic Housing,FAM001,Director of Corporate Services and Transformation,Balance Sheet,Long Term Assets
names-and-codes-for-administrative-geography/index,Thanet District Council,08/01/2013,329168,753.84,Family Mosaic Housing,FAM001,Director of Corporate Services and Transformation,Balance Sheet,Long Term Assets
names-and-codes-for-administrative-geography/index,Thanet District Council,08/01/2013,329169,753.84,Family Mosaic Housing,FAM001,Director of Corporate Services and Transformation,Balance Sheet,Long Term Assets
names-and-codes-for-administrative-geography/index,Thanet District Council,08/01/2013,329064,706.50,Frontier-Pitts Limited,FRO001,Director of Operational Services,Revenue,Supplies and Services
names-and-codes-for-administrative-geography/index,Thanet District Council,08/01/2013,327307,5452.00,Getmapping Plc,GET005,East Kent Shared Services,Revenue,Supplies and Services
names-and-codes-for-administrative-geography/index,Thanet District Council,08/01/2013,329066,364.00,Goodyear Dunlop Truckforce,GOO018,Director of Operational Services,Revenue,Transport Related Expenditure
names-and-codes-for-administrative-geography/index,Thanet District Council,08/01/2013,329067,364.00,Goodyear Dunlop Truckforce,GOO018,Director of Operational Services,Revenue,Transport Related Expenditure
names-and-codes-for-administrative-geography/index,Thanet District Council,08/01/2013,329068,772.96,Goodyear Dunlop Truckforce,GOO018,Director of Operational Services,Revenue,Transport Related Expenditure
names-and-codes-for-administrative-geography/index,Thanet District Council,08/01/2013,328937,43747.50,Grant Thornton Uk Llp,GRA048,Director of Corporate Services and Transformation,Revenue,Supplies and Services
names-and-codes-for-administrative-geography/index,Thanet District Council,08/01/2013,328920,369.00,Greenham,GRE001,Director of Operational Services,Revenue,Supplies and Services
names-and-codes-for-administrative-geography/index,Thanet District Council,08/01/2013,328921,252.00,Greenham,GRE001,Director of Operational Services,Revenue,Supplies and Services
names-and-codes-for-administrative-geography/index,Thanet District Council,08/01/2013,328475,370.45,Hands On Suppliers Ltd,HAN007,Director of Operational Services,Revenue,Supplies and Services
names-and-codes-for-administrative-geography/index,Thanet District Council,08/01/2013,328476,329.96,Hands On Suppliers Ltd,HAN007,Director of Operational Services,Revenue,Supplies and Services
names-and-codes-for-administrative-geography/index,Thanet District Council,08/01/2013,329323,1080.00,Higham Plumbing And Heating Services,HIG008,Director of Community Services,Revenue,Supplies and Services
names-and-codes-for-administrative-geography/index,Thanet District Council,08/01/2013,329077,944.08,Hilton Cabinet Co Ltd,HIL002,Director of Operational Services,Revenue,Supplies and Services
names-and-codes-for-administrative-geography/index,Thanet District Council,08/01/2013,329188,298.00,Hqn Limited,HQN001,Director of Community Services,Revenue,Supplies and Services
names-and-codes-for-administrative-geography/index,Thanet District Council,08/01/2013,328818,5356.68,Hr Go Recruitment Ltd,HRG002,Director of Operational Services,Revenue,Employees
names-and-codes-for-administrative-geography/index,Thanet District Council,08/01/2013,328819,360.00,Hr Go Recruitment Ltd,HRG002,Director of Operational Services,Revenue,Employees
names-and-codes-for-administrative-geography/index,Thanet District Council,08/01/2013,328820,4066.65,Hr Go Recruitment Ltd,HRG002,Director of Operational Services,Revenue,Employees
names-and-codes-for-administrative-geography/index,Thanet District Council,08/01/2013,329103,444.00,Hr Go Recruitment Ltd,HRG002,Director of Operational Services,Revenue,Employees
names-and-codes-for-administrative-geography/index,Thanet District Council,08/01/2013,329104,3297.52,Hr Go Recruitment Ltd,HRG002,Director of Operational Services,Revenue,Employees
names-and-codes-for-administrative-geography/index,Thanet District Council,08/01/2013,329105,4680.55,Hr Go Recruitment Ltd,HRG002,Director of Operational Services,Revenue,Employees
names-and-codes-for-administrative-geography/index,Thanet District Council,08/01/2013,328335,585.00,I J Day Landscapes,DAY004,Director of Operational Services,Revenue,Supplies and Services
names-and-codes-for-administrative-geography/index,Thanet District Council,08/01/2013,328822,468.00,I S & G Steel Stockholders Ltd,ISG001,Director of Operational Services,Revenue,Transport Related Expenditure
names-and-codes-for-administrative-geography/index,Thanet District Council,08/01/2013,328261,365.10,Ideas Unlimited,IDE001,Director of Community Services,Revenue,Supplies and Services
names-and-codes-for-administrative-geography/index,Thanet District Council,08/01/2013,328479,2184.00,Iken Business Ltd,IKE001,Director of Corporate Services and Transformation,Revenue,Supplies and Services
names-and-codes-for-administrative-geography/index,Thanet District Council,08/01/2013,328282,294.66,Jewson Ltd,JEW001,Director of Operational Services,Revenue,Supplies and Services
names-and-codes-for-administrative-geography/index,Thanet District Council,08/01/2013,329338,1116.60,John Gale,GAL001,Director of Corporate Services and Transformation,Balance Sheet,Long Term Assets
names-and-codes-for-administrative-geography/index,Thanet District Council,08/01/2013,329020,272.37,Johnston Sweepers Ltd,JOH008,Director of Operational Services,Revenue,Transport Related Expenditure
names-and-codes-for-administrative-geography/index,Thanet District Council,08/01/2013,328258,215.00,Kent County Council,KCC002,Director of Corporate Services and Transformation,Revenue,Supplies and Services
names-and-codes-for-administrative-geography/index,Thanet District Council,08/01/2013,328722,208.98,Kent County Council (Kcs),KCC003,Director of Corporate Services and Transformation,Revenue,Supplies and Services
names-and-codes-for-administrative-geography/index,Thanet District Council,08/01/2013,328946,400.00,Kent Messenger Ltd,KME001,Director of Community Services,Revenue,Supplies and Services
names-and-codes-for-administrative-geography/index,Thanet District Council,08/01/2013,328827,1080.00,Leafleteers Ltd,LEA023,Director of Operational Services,Revenue,Supplies and Services
names-and-codes-for-administrative-geography/index,Thanet District Council,08/01/2013,328452,325.00,Lexisnexis Uk,LEX002,Director of Corporate Services and Transformation,Revenue,Supplies and Services
names-and-codes-for-administrative-geography/index,Thanet District Council,08/01/2013,328453,461.00,Lexisnexis Uk,LEX002,Director of Corporate Services and Transformation,Revenue,Supplies and Services
names-and-codes-for-administrative-geography/index,Thanet District Council,08/01/2013,328454,295.00,Lexisnexis Uk,LEX002,Director of Corporate Services and Transformation,Revenue,Supplies and Services
names-and-codes-for-administrative-geography/index,Thanet District Council,08/01/2013,328473,554.74,Lister Wilder Limited,LIS002,Director of Operational Services,Revenue,Supplies and Services
names-and-codes-for-administrative-geography/index,Thanet District Council,08/01/2013,329102,664.00,Matrix Communications Ltd,MAT004,Director of Operational Services,Revenue,Supplies and Services
names-and-codes-for-administrative-geography/index,Thanet District Council,08/01/2013,329102,583.50,Matrix Communications Ltd,MAT004,East Kent Shared Services,Revenue,Supplies and Services
names-and-codes-for-administrative-geography/index,Thanet District Council,08/01/2013,328831,1339.50,Michael Page Finance,PAG008,Director of Corporate Services and Transformation,Revenue,Employees
names-and-codes-for-administrative-geography/index,Thanet District Council,08/01/2013,329033,1406.00,Michael Page Finance,PAG008,Director of Corporate Services and Transformation,Revenue,Employees
names-and-codes-for-administrative-geography/index,Thanet District Council,08/01/2013,328253,856.00,Mojo Site Services,MOJ001,Director of Operational Services,Revenue,Premises Related Expenditure
names-and-codes-for-administrative-geography/index,Thanet District Council,08/01/2013,328361,879.24,Morgan Jones Ltd,MOR001,East Kent Shared Services,Revenue,Employees
names-and-codes-for-administrative-geography/index,Thanet District Council,08/01/2013,328951,905.10,Morgan Jones Ltd,MOR001,East Kent Shared Services,Revenue,Employees
names-and-codes-for-administrative-geography/index,Thanet District Council,08/01/2013,329339,2000.00,Neopost Ltd Credifon,NEO002,Director of Operational Services,Revenue,Supplies and Services
names-and-codes-for-administrative-geography/index,Thanet District Council,08/01/2013,328297,1773.23,New Approach Contractors Ltd,NEW037,Director of Operational Services,Revenue,Premises Related Expenditure
names-and-codes-for-administrative-geography/index,Thanet District Council,08/01/2013,328297,667.36,New Approach Contractors Ltd,NEW037,Director of Operational Services,Revenue,Supplies and Services
names-and-codes-for-administrative-geography/index,Thanet District Council,08/01/2013,328519,2200.00,Northgate Inf Solutions Uk Ltd,NOR018,East Kent Shared Services,Revenue,Supplies and Services
names-and-codes-for-administrative-geography/index,Thanet District Council,08/01/2013,328826,1919.20,Northgate Inf Solutions Uk Ltd,NOR018,Director of Community Services,Revenue,Supplies and Services
names-and-codes-for-administrative-geography/index,Thanet District Council,08/01/2013,329096,1942.99,Northgate Inf Solutions Uk Ltd,NOR018,East Kent Shared Services,Revenue,Supplies and Services
names-and-codes-for-administrative-geography/index,Thanet District Council,08/01/2013,328970,16430.23,Ocs Group Uk Ltd T/A Fountains,OCS005,Director of Corporate Services and Transformation,Balance Sheet,Current Assets
names-and-codes-for-administrative-geography/index,Thanet District Council,08/01/2013,328974,367.92,Ocs Group Uk Ltd T/A Fountains,OCS005,Director of Operational Services,Revenue,Premises Related Expenditure
names-and-codes-for-administrative-geography/index,Thanet District Council,08/01/2013,328936,812.50,Oliver Carpets,OLI002,Director of Operational Services,Revenue,Premises Related Expenditure
names-and-codes-for-administrative-geography/index,Thanet District Council,08/01/2013,329084,415.27,Phoenix Software Ltd,PHO002,East Kent Shared Services,Revenue,Supplies and Services
names-and-codes-for-administrative-geography/index,Thanet District Council,08/01/2013,328837,319.87,Probrand Ltd,PRO012,Director of Community Services,Revenue,Supplies and Services
names-and-codes-for-administrative-geography/index,Thanet District Council,08/01/2013,328838,517.00,Probrand Ltd,PRO012,East Kent Shared Services,Revenue,Supplies and Services
names-and-codes-for-administrative-geography/index,Thanet District Council,08/01/2013,328912,3493.52,Probrand Ltd,PRO012,East Kent Shared Services,Revenue,Supplies and Services
names-and-codes-for-administrative-geography/index,Thanet District Council,08/01/2013,328913,510.44,Probrand Ltd,PRO012,East Kent Shared Services,Revenue,Supplies and Services
names-and-codes-for-administrative-geography/index,Thanet District Council,08/01/2013,328962,553.44,Probrand Ltd,PRO012,East Kent Shared Services,Revenue,Supplies and Services
names-and-codes-for-administrative-geography/index,Thanet District Council,08/01/2013,329032,962.44,Probrand Ltd,PRO012,East Kent Shared Services,Revenue,Supplies and Services
names-and-codes-for-administrative-geography/index,Thanet District Council,08/01/2013,328898,2256.26,Puls Global Ltd,PUL006,Director of Corporate Services and Transformation,Balance Sheet,Current Assets
names-and-codes-for-administrative-geography/index,Thanet District Council,08/01/2013,328933,300.00,Puls Global Ltd,PUL006,Director of Operational Services,Revenue,Supplies and Services
names-and-codes-for-administrative-geography/index,Thanet District Council,08/01/2013,328843,805.00,R Cannon,CAN007,Director of Operational Services,Revenue,Supplies and Services
names-and-codes-for-administrative-geography/index,Thanet District Council,08/01/2013,328462,550.00,R J Broadley Tree Surgery,RJB002,Director of Operational Services,Revenue,Premises Related Expenditure
names-and-codes-for-administrative-geography/index,Thanet District Council,08/01/2013,328463,800.00,R J Broadley Tree Surgery,RJB002,Director of Operational Services,Revenue,Premises Related Expenditure
names-and-codes-for-administrative-geography/index,Thanet District Council,08/01/2013,328446,510.00,Radius Regeneration Ltd,RAD007,Director of Community Services,Revenue,Supplies and Services
names-and-codes-for-administrative-geography/index,Thanet District Council,08/01/2013,328886,540.33,Randomstorm Ltd,RAN005,East Kent Shared Services,Revenue,Supplies and Services
names-and-codes-for-administrative-geography/index,Thanet District Council,08/01/2013,328950,598.00,Royal Mail,ROY004,Director of Corporate Services and Transformation,Revenue,Supplies and Services
names-and-codes-for-administrative-geography/index,Thanet District Council,08/01/2013,329013,1806.00,Silgo Lubricants Ltd,SIL007,Director of Operational Services,Revenue,Transport Related Expenditure
names-and-codes-for-administrative-geography/index,Thanet District Council,08/01/2013,329171,5235.00,South East Wetrooms Limited,SEW002,Director of Corporate Services and Transformation,Balance Sheet,Long Term Assets
names-and-codes-for-administrative-geography/index,Thanet District Council,08/01/2013,329172,5235.00,South East Wetrooms Limited,SEW002,Director of Corporate Services and Transformation,Balance Sheet,Long Term Assets
names-and-codes-for-administrative-geography/index,Thanet District Council,08/01/2013,329120,276.02,Southern Electric,SEL007,Director of Operational Services,Revenue,Premises Related Expenditure
names-and-codes-for-administrative-geography/index,Thanet District Council,08/01/2013,328319,346.56,Stand Fast,STA003,Director of Operational Services,Revenue,Supplies and Services
names-and-codes-for-administrative-geography/index,Thanet District Council,08/01/2013,329009,5100.00,Stephen Donald Associates Ltd,SDA001,Director of Community Services,Revenue,Supplies and Services
names-and-codes-for-administrative-geography/index,Thanet District Council,08/01/2013,328828,239.25,Straight Plc,STR021,Director of Operational Services,Revenue,Supplies and Services
names-and-codes-for-administrative-geography/index,Thanet District Council,08/01/2013,328952,2398.00,Studio Engleback Ltd,STU011,Director of Community Services,Revenue,Supplies and Services
names-and-codes-for-administrative-geography/index,Thanet District Council,08/01/2013,328447,91.78,Supplies Team,SUP001,Director of Corporate Services and Transformation,Revenue,Supplies and Services
names-and-codes-for-administrative-geography/index,Thanet District Council,08/01/2013,328447,140.88,Supplies Team,SUP001,Director of Operational Services,Revenue,Supplies and Services
names-and-codes-for-administrative-geography/index,Thanet District Council,08/01/2013,328448,0.40,Supplies Team,SUP001,Director of Corporate Services and Transformation,Revenue,Supplies and Services
names-and-codes-for-administrative-geography/index,Thanet District Council,08/01/2013,328448,224.00,Supplies Team,SUP001,Director of Corporate Services and Transformation,Balance Sheet,Current Liabilities
names-and-codes-for-administrative-geography/index,Thanet District Council,08/01/2013,328300,245.00,Swale Shutter & Door Services Ltd,SWA013,Director of Operational Services,Revenue,Supplies and Services
names-and-codes-for-administrative-geography/index,Thanet District Council,08/01/2013,328256,209.70,Thanet Waste Services Ltd,TWA001,Director of Operational Services,Revenue,Third Party Payments
names-and-codes-for-administrative-geography/index,Thanet District Council,08/01/2013,328445,681.00,The Bay Guest House,BAY006,Director of Community Services,Revenue,Supplies and Services
names-and-codes-for-administrative-geography/index,Thanet District Council,08/01/2013,329334,15000.00,The Dreamland Trust,DRE003,Director of Corporate Services and Transformation,Balance Sheet,Long Term Assets
names-and-codes-for-administrative-geography/index,Thanet District Council,08/01/2013,328860,2375.00,The Glenwood Hotel,GLE007,Director of Community Services,Revenue,Supplies and Services
names-and-codes-for-administrative-geography/index,Thanet District Council,08/01/2013,329187,925.00,Thomson Snell & Passmore,THO016,Director of Community Services,Revenue,Supplies and Services
names-and-codes-for-administrative-geography/index,Thanet District Council,08/01/2013,328120,494.82,Veolia Es (Uk) Ltd,VEO001,Director of Operational Services,Revenue,Premises Related Expenditure
names-and-codes-for-administrative-geography/index,Thanet District Council,08/01/2013,328859,966.67,Victoria Flooring Ltd,VIC001,Director of Operational Services,Revenue,Premises Related Expenditure
names-and-codes-for-administrative-geography/index,Thanet District Council,08/01/2013,328364,456.92,Viridor Waste Management Ltd,VIR003,Director of Operational Services,Revenue,Third Party Payments
names-and-codes-for-administrative-geography/index,Thanet District Council,08/01/2013,328244,350.00,W Brazil & Bros,BRA001,Director of Operational Services,Revenue,Premises Related Expenditure
names-and-codes-for-administrative-geography/index,Thanet District Council,08/01/2013,328266,441.70,W G Burbridge,BUR016,Director of Operational Services,Revenue,Premises Related Expenditure
names-and-codes-for-administrative-geography/index,Thanet District Council,08/01/2013,328520,3580.00,W T Partnership Ltd,WTP002,Director of Community Services,Revenue,Supplies and Services
names-and-codes-for-administrative-geography/index,Thanet District Council,08/01/2013,328482,1278.26,Westbury Industrial Supplies Ltd,WES042,Director of Operational Services,Revenue,Supplies and Services
names-and-codes-for-administrative-geography/index,Thanet District Council,08/01/2013,328934,935.00,Willow Pumps Limited,WIL042,Director of Operational Services,Revenue,Premises Related Expenditure
names-and-codes-for-administrative-geography/index,Thanet District Council,08/01/2013,328731,521.80,Wolters Kluwer (Uk) Ltd,WOL002,Director of Operational Services,Revenue,Supplies and Services
names-and-codes-for-administrative-geography/index,Thanet District Council,08/01/2013,329179,240.00,Xpress Software Solutions Ltd,XPR002,Director of Corporate Services and Transformation,Revenue,Supplies and Services
names-and-codes-for-administrative-geography/index,Thanet District Council,08/01/2013,328992,1137.60,Zen Internet Ltd,ZEN001,Director of Operational Services,Revenue,Supplies and Services
names-and-codes-for-administrative-geography/index,Thanet District Council,11/01/2013,329700,3000.00,Manston Parish Council,MAN001,Director of Corporate Services and Transformation,Balance Sheet,Reserves
names-and-codes-for-administrative-geography/index,Thanet District Council,11/01/2013,329631,300.00,St Paul'S Church Pcc,STP011,Director of Corporate Services and Transformation,Revenue,Premises Related Expenditure
names-and-codes-for-administrative-geography/index,Thanet District Council,14/01/2013,329809,300.00,1st Margate St Johns Scout Group,1ST005,Director of Corporate Services and Transformation,Revenue,Premises Related Expenditure
names-and-codes-for-administrative-geography/index,Thanet District Council,14/01/2013,329011,482.33,Adecco Uk Ltd,ADE005,Director of Corporate Services and Transformation,Revenue,Employees
names-and-codes-for-administrative-geography/index,Thanet District Council,14/01/2013,329093,482.33,Adecco Uk Ltd,ADE005,Director of Corporate Services and Transformation,Revenue,Employees
names-and-codes-for-administrative-geography/index,Thanet District Council,14/01/2013,329532,3498.00,Aligned Assets Ltd,ALI002,East Kent Shared Services,Revenue,Supplies and Services
names-and-codes-for-administrative-geography/index,Thanet District Council,14/01/2013,329041,484.00,All Access Ltd,ALL031,Director of Corporate Services and Transformation,Balance Sheet,Current Assets
names-and-codes-for-administrative-geography/index,Thanet District Council,14/01/2013,329055,220.00,All Sign Solutions Ltd,ALL002,Director of Corporate Services and Transformation,Revenue,Supplies and Services
names-and-codes-for-administrative-geography/index,Thanet District Council,14/01/2013,329112,650.00,All Sign Solutions Ltd,ALL002,Director of Corporate Services and Transformation,Balance Sheet,Current Assets
names-and-codes-for-administrative-geography/index,Thanet District Council,14/01/2013,329672,1015.00,Amber Driver Training,AMB004,Director of Operational Services,Revenue,Supplies and Services
names-and-codes-for-administrative-geography/index,Thanet District Council,14/01/2013,329749,476.86,Aylesford Newsprint Ltd,AYL004,Director of Operational Services,Revenue,Supplies and Services
names-and-codes-for-administrative-geography/index,Thanet District Council,14/01/2013,329277,1085.00,Bayly Environmental Services Ltd,BAY001,Director of Operational Services,Revenue,Premises Related Expenditure
names-and-codes-for-administrative-geography/index,Thanet District Council,14/01/2013,329691,2957.02,Berryman,BER001,Director of Operational Services,Revenue,Supplies and Services
names-and-codes-for-administrative-geography/index,Thanet District Council,14/01/2013,328923,1020.00,Blackburns Funeral Service,BLA002,Director of Corporate Services and Transformation,Revenue,Supplies and Services
names-and-codes-for-administrative-geography/index,Thanet District Council,14/01/2013,329640,280.75,Blackhurst Wade,BLA004,Director of Operational Services,Revenue,Transport Related Expenditure
names-and-codes-for-administrative-geography/index,Thanet District Council,14/01/2013,329213,548.17,Capt G Tully,TUL001,Director of Operational Services,Revenue,Supplies and Services
names-and-codes-for-administrative-geography/index,Thanet District Council,14/01/2013,329206,802.20,Casement Signs And Traffic,CAS001,Director of Operational Services,Revenue,Premises Related Expenditure
names-and-codes-for-administrative-geography/index,Thanet District Council,14/01/2013,329061,350.00,Chartered Institute Of Housing,CHA008,Director of Community Services,Revenue,Supplies and Services
names-and-codes-for-administrative-geography/index,Thanet District Council,14/01/2013,329062,350.00,Chartered Institute Of Housing,CHA008,Director of Community Services,Revenue,Supplies and Services
names-and-codes-for-administrative-geography/index,Thanet District Council,14/01/2013,329028,594.00,Child Poverty Action Group,CPA001,East Kent Shared Services,Revenue,Supplies and Services
names-and-codes-for-administrative-geography/index,Thanet District Council,14/01/2013,329006,1457.29,Clear Picture Services Limited,CLE015,Director of Corporate Services and Transformation,Balance Sheet,Current Assets
names-and-codes-for-administrative-geography/index,Thanet District Council,14/01/2013,329152,976.00,Clear Picture Services Limited,CLE015,Director of Corporate Services and Transformation,Balance Sheet,Current Assets
names-and-codes-for-administrative-geography/index,Thanet District Council,14/01/2013,329662,1802.00,Clear Picture Services Limited,CLE015,Director of Corporate Services and Transformation,Balance Sheet,Current Assets
names-and-codes-for-administrative-geography/index,Thanet District Council,14/01/2013,329533,288.45,Cobalt Telephone Technologies Ltd,COB002,Director of Operational Services,Revenue,Supplies and Services
names-and-codes-for-administrative-geography/index,Thanet District Council,14/01/2013,329535,367.80,Cobalt Telephone Technologies Ltd,COB002,Director of Operational Services,Revenue,Supplies and Services
names-and-codes-for-administrative-geography/index,Thanet District Council,14/01/2013,329226,1139.40,Community Network Services Limited,CNS001,Director of Operational Services,Revenue,Transport Related Expenditure
names-and-codes-for-administrative-geography/index,Thanet District Council,14/01/2013,329201,1575.00,Dawsonrentals Sweepers,DAW003,Director of Operational Services,Revenue,Transport Related Expenditure
names-and-codes-for-administrative-geography/index,Thanet District Council,14/01/2013,328501,21750.00,Dover Harbour Board,DOV006,Director of Operational Services,Revenue,Premises Related Expenditure
names-and-codes-for-administrative-geography/index,Thanet District Council,14/01/2013,329260,227.50,Eclipse Recovery Services Ltd,ECL002,Director of Operational Services,Revenue,Transport Related Expenditure
names-and-codes-for-administrative-geography/index,Thanet District Council,14/01/2013,329257,6769.60,Ecy Holdings Ltd,ECY001,Director of Operational Services,Revenue,Supplies and Services
names-and-codes-for-administrative-geography/index,Thanet District Council,14/01/2013,329561,1365.38,Electoral Reform Services,ELE010,Director of Corporate Services and Transformation,Revenue,Supplies and Services
names-and-codes-for-administrative-geography/index,Thanet District Council,14/01/2013,329165,1815.00,Florence Court Hotel,FLO003,Director of Community Services,Revenue,Supplies and Services
names-and-codes-for-administrative-geography/index,Thanet District Council,14/01/2013,329525,890.00,Frontier-Pitts Limited,FRO001,Director of Operational Services,Revenue,Premises Related Expenditure
names-and-codes-for-administrative-geography/index,Thanet District Council,14/01/2013,329262,986.85,Future-Tech Sci Ltd,FUT001,East Kent Shared Services,Revenue,Supplies and Services
names-and-codes-for-administrative-geography/index,Thanet District Council,14/01/2013,329756,300.00,George Mccabe,MCC001,Director of Operational Services,Revenue,Premises Related Expenditure
names-and-codes-for-administrative-geography/index,Thanet District Council,14/01/2013,329511,541.50,Goddard Hester,GOD003,Director of Community Services,Revenue,Supplies and Services
names-and-codes-for-administrative-geography/index,Thanet District Council,14/01/2013,329074,367.20,Greenham,GRE001,Director of Operational Services,Revenue,Supplies and Services
names-and-codes-for-administrative-geography/index,Thanet District Council,14/01/2013,329075,369.00,Greenham,GRE001,Director of Operational Services,Revenue,Supplies and Services
names-and-codes-for-administrative-geography/index,Thanet District Council,14/01/2013,329564,440.00,H M Courts & Tribunal Service,HMC004,Director of Community Services,Revenue,Supplies and Services
names-and-codes-for-administrative-geography/index,Thanet District Council,14/01/2013,329266,242.10,Hands On Suppliers Ltd,HAN007,Director of Operational Services,Revenue,Supplies and Services
names-and-codes-for-administrative-geography/index,Thanet District Council,14/01/2013,328935,650.00,Hi Way Services Ltd,HIW002,Director of Operational Services,Revenue,Premises Related Expenditure
names-and-codes-for-administrative-geography/index,Thanet District Council,14/01/2013,328956,15400.00,Hopkinsons Fairdeals Remarketing Llp,HOP003,Director of Operational Services,Revenue,Transport Related Expenditure
names-and-codes-for-administrative-geography/index,Thanet District Council,14/01/2013,329216,3932.70,Hr Go Recruitment Ltd,HRG002,Director of Operational Services,Revenue,Employees
names-and-codes-for-administrative-geography/index,Thanet District Council,14/01/2013,329217,4648.13,Hr Go Recruitment Ltd,HRG002,Director of Operational Services,Revenue,Employees
names-and-codes-for-administrative-geography/index,Thanet District Council,14/01/2013,329218,444.00,Hr Go Recruitment Ltd,HRG002,Director of Operational Services,Revenue,Employees
names-and-codes-for-administrative-geography/index,Thanet District Council,14/01/2013,329607,5342.22,Hr Go Recruitment Ltd,HRG002,Director of Operational Services,Revenue,Employees
names-and-codes-for-administrative-geography/index,Thanet District Council,14/01/2013,329608,2886.99,Hr Go Recruitment Ltd,HRG002,Director of Operational Services,Revenue,Employees
names-and-codes-for-administrative-geography/index,Thanet District Council,14/01/2013,329219,1008.00,Idox Software  Limited,IDO001,Director of Community Services,Revenue,Supplies and Services
names-and-codes-for-administrative-geography/index,Thanet District Council,14/01/2013,328491,5164.00,Invicta Storage Systems Ltd,INV001,Director of Operational Services,Revenue,Premises Related Expenditure
names-and-codes-for-administrative-geography/index,Thanet District Council,14/01/2013,328486,213.93,Jewson Ltd,JEW001,Director of Operational Services,Revenue,Supplies and Services
names-and-codes-for-administrative-geography/index,Thanet District Council,14/01/2013,329079,400.00,Kent County Council,KCC002,Director of Operational Services,Revenue,Supplies and Services
names-and-codes-for-administrative-geography/index,Thanet District Council,14/01/2013,329080,1776.00,Kent County Council,KCC002,Director of Corporate Services and Transformation,Revenue,Supplies and Services
names-and-codes-for-administrative-geography/index,Thanet District Council,14/01/2013,329760,385.00,Kent County Council,KCC006,Director of Operational Services,Revenue,Premises Related Expenditure
names-and-codes-for-administrative-geography/index,Thanet District Council,14/01/2013,326411,516.78,Kent County Council (Kcs),KCC003,Director of Operational Services,Revenue,Premises Related Expenditure
names-and-codes-for-administrative-geography/index,Thanet District Council,14/01/2013,328832,3264.69,Kent County Council (Kcs),KCC003,Director of Corporate Services and Transformation,Revenue,Supplies and Services
names-and-codes-for-administrative-geography/index,Thanet District Council,14/01/2013,328832,116.56,Kent County Council (Kcs),KCC003,Director of Operational Services,Revenue,Supplies and Services
names-and-codes-for-administrative-geography/index,Thanet District Council,14/01/2013,328845,245.81,Kent County Council (Kcs),KCC003,Director of Operational Services,Revenue,Supplies and Services
names-and-codes-for-administrative-geography/index,Thanet District Council,14/01/2013,329017,-516.78,Kent County Council (Kcs),KCC003,Director of Operational Services,Revenue,Premises Related Expenditure
names-and-codes-for-administrative-geography/index,Thanet District Council,14/01/2013,329149,33343.00,Kent County Council (Kcs),KCC003,Director of Operational Services,Revenue,Transport Related Expenditure
names-and-codes-for-administrative-geography/index,Thanet District Council,14/01/2013,329161,222.46,Kent County Council (Kcs),KCC003,Director of Operational Services,Revenue,Premises Related Expenditure
names-and-codes-for-administrative-geography/index,Thanet District Council,14/01/2013,329514,2473.00,Kent County Council (Kcs),KCC003,Director of Operational Services,Revenue,Transport Related Expenditure
names-and-codes-for-administrative-geography/index,Thanet District Council,14/01/2013,329515,2473.00,Kent County Council (Kcs),KCC003,Director of Operational Services,Revenue,Transport Related Expenditure
names-and-codes-for-administrative-geography/index,Thanet District Council,14/01/2013,329516,2528.00,Kent County Council (Kcs),KCC003,Director of Operational Services,Revenue,Transport Related Expenditure
names-and-codes-for-administrative-geography/index,Thanet District Council,14/01/2013,329641,4588.00,Kent County Council (Kcs),KCC003,Director of Corporate Services and Transformation,Revenue,Supplies and Services
names-and-codes-for-administrative-geography/index,Thanet District Council,14/01/2013,329642,4671.00,Kent County Council (Kcs),KCC003,Director of Corporate Services and Transformation,Revenue,Supplies and Services
names-and-codes-for-administrative-geography/index,Thanet District Council,14/01/2013,329643,435.00,Kent County Council (Kcs),KCC003,Director of Corporate Services and Transformation,Revenue,Supplies and Services
names-and-codes-for-administrative-geography/index,Thanet District Council,14/01/2013,329280,52609.44,Kent County Council Re Pension Fund,KCC001,Director of Corporate Services and Transformation,Revenue,Employees
names-and-codes-for-administrative-geography/index,Thanet District Council,14/01/2013,329273,400.00,Kent Messenger Ltd,KME001,Director of Operational Services,Revenue,Supplies and Services
names-and-codes-for-administrative-geography/index,Thanet District Council,14/01/2013,329274,400.00,Kent Messenger Ltd,KME001,Director of Operational Services,Revenue,Supplies and Services
names-and-codes-for-administrative-geography/index,Thanet District Council,14/01/2013,329092,448.00,Kent Metro Ltd,KEN009,Director of Operational Services,Revenue,Employees
names-and-codes-for-administrative-geography/index,Thanet District Council,14/01/2013,329602,1264.10,Lawrence Graham Llp,LAW014,Director of Operational Services,Revenue,Supplies and Services
names-and-codes-for-administrative-geography/index,Thanet District Council,14/01/2013,329031,7560.00,Learning Nexus Ltd,LEA020,Director of Corporate Services and Transformation,Revenue,Employees
names-and-codes-for-administrative-geography/index,Thanet District Council,14/01/2013,323059,374.00,Lednor Construction Limited,LED003,Director of Corporate Services and Transformation,Balance Sheet,Current Assets
names-and-codes-for-administrative-geography/index,Thanet District Council,14/01/2013,323062,440.00,Lednor Construction Limited,LED003,Director of Corporate Services and Transformation,Balance Sheet,Current Assets
names-and-codes-for-administrative-geography/index,Thanet District Council,14/01/2013,323063,374.00,Lednor Construction Limited,LED003,Director of Corporate Services and Transformation,Balance Sheet,Current Assets
names-and-codes-for-administrative-geography/index,Thanet District Council,14/01/2013,323064,374.00,Lednor Construction Limited,LED003,Director of Corporate Services and Transformation,Balance Sheet,Current Assets
names-and-codes-for-administrative-geography/index,Thanet District Council,14/01/2013,323065,374.00,Lednor Construction Limited,LED003,Director of Corporate Services and Transformation,Balance Sheet,Current Assets
names-and-codes-for-administrative-geography/index,Thanet District Council,14/01/2013,324205,374.00,Lednor Construction Limited,LED003,Director of Corporate Services and Transformation,Balance Sheet,Current Assets
names-and-codes-for-administrative-geography/index,Thanet District Council,14/01/2013,324206,374.00,Lednor Construction Limited,LED003,Director of Corporate Services and Transformation,Balance Sheet,Current Assets
names-and-codes-for-administrative-geography/index,Thanet District Council,14/01/2013,324207,374.00,Lednor Construction Limited,LED003,Director of Corporate Services and Transformation,Balance Sheet,Current Assets
names-and-codes-for-administrative-geography/index,Thanet District Council,14/01/2013,324208,374.00,Lednor Construction Limited,LED003,Director of Corporate Services and Transformation,Balance Sheet,Current Assets
names-and-codes-for-administrative-geography/index,Thanet District Council,14/01/2013,324209,374.00,Lednor Construction Limited,LED003,Director of Corporate Services and Transformation,Balance Sheet,Current Assets
names-and-codes-for-administrative-geography/index,Thanet District Council,14/01/2013,324210,264.00,Lednor Construction Limited,LED003,Director of Corporate Services and Transformation,Balance Sheet,Current Assets
names-and-codes-for-administrative-geography/index,Thanet District Council,14/01/2013,324211,440.00,Lednor Construction Limited,LED003,Director of Corporate Services and Transformation,Balance Sheet,Current Assets
names-and-codes-for-administrative-geography/index,Thanet District Council,14/01/2013,324212,374.00,Lednor Construction Limited,LED003,Director of Corporate Services and Transformation,Balance Sheet,Current Assets
names-and-codes-for-administrative-geography/index,Thanet District Council,14/01/2013,328931,497.25,Loomis Uk Ltd,LOO002,Director of Operational Services,Revenue,Supplies and Services
names-and-codes-for-administrative-geography/index,Thanet District Council,14/01/2013,329098,290.00,M D Electrics,MDE001,Director of Operational Services,Revenue,Premises Related Expenditure
names-and-codes-for-administrative-geography/index,Thanet District Council,14/01/2013,329119,255.00,M D Electrics,MDE001,Director of Operational Services,Revenue,Premises Related Expenditure
names-and-codes-for-administrative-geography/index,Thanet District Council,14/01/2013,329279,4649.91,Med Clean South Ltd,MED015,Director of Operational Services,Revenue,Premises Related Expenditure
names-and-codes-for-administrative-geography/index,Thanet District Council,14/01/2013,328851,275.00,Multiserv,MUL004,Director of Corporate Services and Transformation,Balance Sheet,Current Assets
names-and-codes-for-administrative-geography/index,Thanet District Council,14/01/2013,328852,275.00,Multiserv,MUL004,Director of Corporate Services and Transformation,Balance Sheet,Current Assets
names-and-codes-for-administrative-geography/index,Thanet District Council,14/01/2013,328853,275.00,Multiserv,MUL004,Director of Corporate Services and Transformation,Balance Sheet,Current Assets
names-and-codes-for-administrative-geography/index,Thanet District Council,14/01/2013,328854,275.00,Multiserv,MUL004,Director of Corporate Services and Transformation,Balance Sheet,Current Assets
names-and-codes-for-administrative-geography/index,Thanet District Council,14/01/2013,328855,275.00,Multiserv,MUL004,Director of Corporate Services and Transformation,Balance Sheet,Current Assets
names-and-codes-for-administrative-geography/index,Thanet District Council,14/01/2013,329284,36.00,N J P Contractors,NJP001,Director of Community Services,Revenue,Premises Related Expenditure
names-and-codes-for-administrative-geography/index,Thanet District Council,14/01/2013,329284,877.00,N J P Contractors,NJP001,Director of Operational Services,Revenue,Premises Related Expenditure
names-and-codes-for-administrative-geography/index,Thanet District Council,14/01/2013,329220,3383.94,National Express Ltd,NAT010,Director of Community Services,Revenue,Supplies and Services
names-and-codes-for-administrative-geography/index,Thanet District Council,14/01/2013,328955,300.00,Nrm Ltd,NRM001,Director of Operational Services,Revenue,Transport Related Expenditure
names-and-codes-for-administrative-geography/index,Thanet District Council,14/01/2013,329124,343.64,O2 (Uk) Ltd,O2U001,Director of Operational Services,Revenue,Supplies and Services
names-and-codes-for-administrative-geography/index,Thanet District Council,14/01/2013,328969,833.54,Ocs Group Uk Ltd T/A Fountains,OCS005,Director of Operational Services,Revenue,Premises Related Expenditure
names-and-codes-for-administrative-geography/index,Thanet District Council,14/01/2013,328971,245.50,Ocs Group Uk Ltd T/A Fountains,OCS005,Director of Operational Services,Revenue,Premises Related Expenditure
names-and-codes-for-administrative-geography/index,Thanet District Council,14/01/2013,329036,10877.55,Ocs Group Uk Ltd T/A Fountains,OCS005,Director of Corporate Services and Transformation,Balance Sheet,Current Assets
names-and-codes-for-administrative-geography/index,Thanet District Council,14/01/2013,329518,587.58,Ocs Group Uk Ltd T/A Fountains,OCS005,Director of Corporate Services and Transformation,Balance Sheet,Current Assets
names-and-codes-for-administrative-geography/index,Thanet District Council,14/01/2013,329519,587.58,Ocs Group Uk Ltd T/A Fountains,OCS005,Director of Corporate Services and Transformation,Balance Sheet,Current Assets
names-and-codes-for-administrative-geography/index,Thanet District Council,14/01/2013,329190,657.84,Page Plan Copiers Limited,PAG002,Director of Community Services,Revenue,Supplies and Services
names-and-codes-for-administrative-geography/index,Thanet District Council,14/01/2013,329275,251.93,Phoenix Software Ltd,PHO002,East Kent Shared Services,Revenue,Supplies and Services
names-and-codes-for-administrative-geography/index,Thanet District Council,14/01/2013,329657,383.21,Probrand Ltd,PRO012,East Kent Shared Services,Revenue,Supplies and Services
names-and-codes-for-administrative-geography/index,Thanet District Council,14/01/2013,328938,455.00,R Cannon,CAN007,Director of Operational Services,Revenue,Supplies and Services
names-and-codes-for-administrative-geography/index,Thanet District Council,14/01/2013,329673,1310.00,Rackspace Managed Hosting Ltd,RAC004,East Kent Shared Services,Revenue,Supplies and Services
names-and-codes-for-administrative-geography/index,Thanet District Council,14/01/2013,329107,2646.62,Royal Mail,ROY004,Director of Corporate Services and Transformation,Revenue,Supplies and Services
names-and-codes-for-administrative-geography/index,Thanet District Council,14/01/2013,329108,1766.03,Royal Mail,ROY004,Director of Corporate Services and Transformation,Revenue,Supplies and Services
names-and-codes-for-administrative-geography/index,Thanet District Council,14/01/2013,328841,982.38,Santander Uk Plc,SAN019,Director of Community Services,Revenue,Supplies and Services
names-and-codes-for-administrative-geography/index,Thanet District Council,14/01/2013,329065,247.61,Sba Ltd,SBA001,Director of Operational Services,Revenue,Supplies and Services
names-and-codes-for-administrative-geography/index,Thanet District Council,14/01/2013,328484,366.19,Screwfix Direct Ltd,SCR001,Director of Operational Services,Revenue,Premises Related Expenditure
names-and-codes-for-administrative-geography/index,Thanet District Council,14/01/2013,328485,227.50,Seasafe Systems Ltd,SEA004,Director of Operational Services,Revenue,Premises Related Expenditure
names-and-codes-for-administrative-geography/index,Thanet District Council,14/01/2013,329333,291.20,Shepway District Council,SHE001,Director of Community Services,Revenue,Supplies and Services
names-and-codes-for-administrative-geography/index,Thanet District Council,14/01/2013,328515,1293.92,Siemens Build Tech Sec Systems Ltd,SIE002,Director of Corporate Services and Transformation,Revenue,Supplies and Services
names-and-codes-for-administrative-geography/index,Thanet District Council,14/01/2013,329559,253.32,Southern Electric,SEL007,Director of Operational Services,Revenue,Premises Related Expenditure
names-and-codes-for-administrative-geography/index,Thanet District Council,14/01/2013,329563,2039.38,Southern Electric,SEL007,Director of Community Services,Revenue,Premises Related Expenditure
names-and-codes-for-administrative-geography/index,Thanet District Council,14/01/2013,328978,729.99,Southern Water,SWA001,Director of Operational Services,Revenue,Premises Related Expenditure
names-and-codes-for-administrative-geography/index,Thanet District Council,14/01/2013,328979,715.59,Southern Water,SWA001,Director of Operational Services,Revenue,Premises Related Expenditure
names-and-codes-for-administrative-geography/index,Thanet District Council,14/01/2013,328981,356.36,Southern Water,SWA001,Director of Operational Services,Revenue,Premises Related Expenditure
names-and-codes-for-administrative-geography/index,Thanet District Council,14/01/2013,328982,1075.88,Southern Water,SWA001,Director of Operational Services,Revenue,Premises Related Expenditure
names-and-codes-for-administrative-geography/index,Thanet District Council,14/01/2013,329173,1438.38,Southern Water,SWA001,Director of Operational Services,Revenue,Premises Related Expenditure
names-and-codes-for-administrative-geography/index,Thanet District Council,14/01/2013,329670,343.49,Southern Water,SWA001,Director of Operational Services,Revenue,Premises Related Expenditure
names-and-codes-for-administrative-geography/index,Thanet District Council,14/01/2013,329732,248.51,Sparshatts Of Kent Ltd,SPA008,Director of Operational Services,Revenue,Transport Related Expenditure
names-and-codes-for-administrative-geography/index,Thanet District Council,14/01/2013,329523,259.92,Stand Fast,STA003,Director of Operational Services,Revenue,Premises Related Expenditure
names-and-codes-for-administrative-geography/index,Thanet District Council,14/01/2013,328918,623.00,Streetmaster (S.Wales) Limited,STR001,Director of Operational Services,Revenue,Supplies and Services
names-and-codes-for-administrative-geography/index,Thanet District Council,14/01/2013,329211,224.40,Supplies Team,SUP001,Director of Corporate Services and Transformation,Revenue,Supplies and Services
names-and-codes-for-administrative-geography/index,Thanet District Council,14/01/2013,329253,193.96,Supplies Team,SUP001,Director of Community Services,Revenue,Supplies and Services
names-and-codes-for-administrative-geography/index,Thanet District Council,14/01/2013,329253,44.12,Supplies Team,SUP001,Director of Operational Services,Revenue,Supplies and Services
names-and-codes-for-administrative-geography/index,Thanet District Council,14/01/2013,329287,24618.46,Swale Heating Ltd,SWA006,Director of Corporate Services and Transformation,Balance Sheet,Current Assets
names-and-codes-for-administrative-geography/index,Thanet District Council,14/01/2013,329029,276.63,Tchibo Coffee International Ltd,TCH007,Director of Corporate Services and Transformation,Balance Sheet,Current Liabilities
names-and-codes-for-administrative-geography/index,Thanet District Council,14/01/2013,329109,390.00,Thanet Heating Co Ltd,THE010,Director of Corporate Services and Transformation,Balance Sheet,Current Assets
names-and-codes-for-administrative-geography/index,Thanet District Council,14/01/2013,329051,836.50,The Bay Guest House,BAY006,Director of Community Services,Revenue,Supplies and Services
names-and-codes-for-administrative-geography/index,Thanet District Council,14/01/2013,329159,787.50,The Bay Guest House,BAY006,Director of Community Services,Revenue,Supplies and Services
names-and-codes-for-administrative-geography/index,Thanet District Council,14/01/2013,329199,769.80,The Fed Of Burial & Cremation Auths,FED001,Director of Operational Services,Revenue,Supplies and Services
names-and-codes-for-administrative-geography/index,Thanet District Council,14/01/2013,329110,2270.83,The Glenwood Hotel,GLE007,Director of Community Services,Revenue,Supplies and Services
names-and-codes-for-administrative-geography/index,Thanet District Council,14/01/2013,329154,2541.66,The Glenwood Hotel,GLE007,Director of Community Services,Revenue,Supplies and Services
names-and-codes-for-administrative-geography/index,Thanet District Council,14/01/2013,329205,363.29,Total Supplies Ltd,TOT009,Director of Corporate Services and Transformation,Balance Sheet,Current Liabilities
names-and-codes-for-administrative-geography/index,Thanet District Council,14/01/2013,329252,223.30,Trews Workwear And Ppe,TRE003,Director of Operational Services,Revenue,Supplies and Services
names-and-codes-for-administrative-geography/index,Thanet District Council,14/01/2013,329214,475.00,Ultra Electronics Aep Payments Ltd,ULT005,Director of Corporate Services and Transformation,Revenue,Supplies and Services
names-and-codes-for-administrative-geography/index,Thanet District Council,14/01/2013,328925,1915.21,Uplands Engineering Ltd,UPL001,Director of Operational Services,Revenue,Supplies and Services
names-and-codes-for-administrative-geography/index,Thanet District Council,14/01/2013,329621,270.00,Viridor Waste Management Ltd,VIR003,Director of Operational Services,Revenue,Third Party Payments
names-and-codes-for-administrative-geography/index,Thanet District Council,14/01/2013,329628,641.14,Viridor Waste Management Ltd,VIR003,Director of Operational Services,Revenue,Supplies and Services
names-and-codes-for-administrative-geography/index,Thanet District Council,14/01/2013,329811,300.00,Windmill Inn Public House,WIN014,Director of Corporate Services and Transformation,Revenue,Premises Related Expenditure
names-and-codes-for-administrative-geography/index,Thanet District Council,15/01/2013,330012,698.92,Santander,SAN017,Director of Corporate Services and Transformation,Revenue,Supplies and Services
names-and-codes-for-administrative-geography/index,Thanet District Council,15/01/2013,330013,2175.51,Santander,SAN017,Director of Corporate Services and Transformation,Revenue,Supplies and Services
names-and-codes-for-administrative-geography/index,Thanet District Council,15/01/2013,330013,725.17,Santander,SAN017,Director of Community Services,Revenue,Supplies and Services
names-and-codes-for-administrative-geography/index,Thanet District Council,15/01/2013,330017,1034.13,Worldpay Ltd,WOR008,Director of Corporate Services and Transformation,Revenue,Supplies and Services
names-and-codes-for-administrative-geography/index,Thanet District Council,15/01/2013,330021,796.01,Worldpay Ltd,WOR008,Director of Corporate Services and Transformation,Revenue,Supplies and Services
names-and-codes-for-administrative-geography/index,Thanet District Council,16/01/2013,330043,350.61,Allstar Business Solutions Ltd,ALL038,Director of Operational Services,Revenue,Transport Related Expenditure
names-and-codes-for-administrative-geography/index,Thanet District Council,16/01/2013,329635,374.43,Dennis Eagle Ltd,DEN005,Director of Operational Services,Revenue,Transport Related Expenditure
names-and-codes-for-administrative-geography/index,Thanet District Council,16/01/2013,329208,590.00,Elite Asbestos Consultancy Ltd,ELI003,Director of Operational Services,Revenue,Premises Related Expenditure
names-and-codes-for-administrative-geography/index,Thanet District Council,16/01/2013,329611,1456.00,Estuary Services Ltd,EST002,Director of Operational Services,Revenue,Transport Related Expenditure
names-and-codes-for-administrative-geography/index,Thanet District Council,16/01/2013,330003,294.66,G & W Gardner Building Cont Ltd,GAR001,Director of Corporate Services and Transformation,Balance Sheet,Current Assets
names-and-codes-for-administrative-geography/index,Thanet District Council,16/01/2013,328830,2279.24,Gloster Furniture Ltd,GLO002,Director of Operational Services,Revenue,Supplies and Services
names-and-codes-for-administrative-geography/index,Thanet District Council,16/01/2013,329645,225.00,Guideline Lift Services Ltd,GUI002,Director of Operational Services,Revenue,Premises Related Expenditure
names-and-codes-for-administrative-geography/index,Thanet District Council,16/01/2013,329646,258.34,Guideline Lift Services Ltd,GUI002,Director of Operational Services,Revenue,Premises Related Expenditure
names-and-codes-for-administrative-geography/index,Thanet District Council,16/01/2013,329227,573.54,L W Burt & Son Ltd,BUR027,Director of Operational Services,Revenue,Premises Related Expenditure
names-and-codes-for-administrative-geography/index,Thanet District Council,16/01/2013,329117,620.00,Maxwells Grounds Maintenance Ltd,MAX002,Director of Operational Services,Revenue,Premises Related Expenditure
names-and-codes-for-administrative-geography/index,Thanet District Council,16/01/2013,329255,96473.22,Mears Ltd,MEA003,Director of Community Services,Revenue,Premises Related Expenditure
names-and-codes-for-administrative-geography/index,Thanet District Council,16/01/2013,329228,905.10,Morgan Jones Ltd,MOR001,East Kent Shared Services,Revenue,Employees
names-and-codes-for-administrative-geography/index,Thanet District Council,16/01/2013,329678,1000.00,Reed Business Information Ltd,REE002,Director of Operational Services,Revenue,Employees
names-and-codes-for-administrative-geography/index,Thanet District Council,16/01/2013,329988,474.46,Screwfix Direct Ltd,SCR001,Director of Operational Services,Revenue,Premises Related Expenditure
names-and-codes-for-administrative-geography/index,Thanet District Council,16/01/2013,329210,259.00,Seaward Color Copy Ltd,SEA001,Director of Community Services,Revenue,Supplies and Services
names-and-codes-for-administrative-geography/index,Thanet District Council,16/01/2013,329082,247.20,Sitexorbis Ltd,SIT007,Director of Community Services,Revenue,Supplies and Services
names-and-codes-for-administrative-geography/index,Thanet District Council,16/01/2013,329207,278.10,Sitexorbis Ltd,SIT007,Director of Community Services,Revenue,Supplies and Services
names-and-codes-for-administrative-geography/index,Thanet District Council,16/01/2013,329748,892.08,Sparshatts Of Kent Ltd,SPA008,Director of Operational Services,Revenue,Transport Related Expenditure
names-and-codes-for-administrative-geography/index,Thanet District Council,16/01/2013,329714,2175.58,Swale Heating Ltd,SWA006,Director of Corporate Services and Transformation,Balance Sheet,Current Assets
names-and-codes-for-administrative-geography/index,Thanet District Council,16/01/2013,329715,3054.44,Swale Heating Ltd,SWA006,Director of Corporate Services and Transformation,Balance Sheet,Current Assets
names-and-codes-for-administrative-geography/index,Thanet District Council,16/01/2013,329716,3240.58,Swale Heating Ltd,SWA006,Director of Corporate Services and Transformation,Balance Sheet,Current Assets
names-and-codes-for-administrative-geography/index,Thanet District Council,16/01/2013,329717,2750.00,Swale Heating Ltd,SWA006,Director of Corporate Services and Transformation,Balance Sheet,Current Assets
names-and-codes-for-administrative-geography/index,Thanet District Council,16/01/2013,329718,2931.72,Swale Heating Ltd,SWA006,Director of Corporate Services and Transformation,Balance Sheet,Current Assets
names-and-codes-for-administrative-geography/index,Thanet District Council,16/01/2013,329719,2004.00,Swale Heating Ltd,SWA006,Director of Corporate Services and Transformation,Balance Sheet,Current Assets
names-and-codes-for-administrative-geography/index,Thanet District Council,16/01/2013,329720,1980.00,Swale Heating Ltd,SWA006,Director of Corporate Services and Transformation,Balance Sheet,Current Assets
names-and-codes-for-administrative-geography/index,Thanet District Council,16/01/2013,329721,1992.50,Swale Heating Ltd,SWA006,Director of Corporate Services and Transformation,Balance Sheet,Current Assets
names-and-codes-for-administrative-geography/index,Thanet District Council,16/01/2013,329722,2719.00,Swale Heating Ltd,SWA006,Director of Corporate Services and Transformation,Balance Sheet,Current Assets
names-and-codes-for-administrative-geography/index,Thanet District Council,16/01/2013,329667,638.00,Thanet Leisureforce Ltd,TLF001,Director of Community Services,Revenue,Supplies and Services
names-and-codes-for-administrative-geography/index,Thanet District Council,16/01/2013,329624,711.50,The Bay Guest House,BAY006,Director of Community Services,Revenue,Supplies and Services
names-and-codes-for-administrative-geography/index,Thanet District Council,16/01/2013,329705,2316.67,The Glenwood Hotel,GLE007,Director of Community Services,Revenue,Supplies and Services
names-and-codes-for-administrative-geography/index,Thanet District Council,18/01/2013,330193,5780.00,Mr Simon Kverndal,KVE001,Director of Operational Services,Revenue,Supplies and Services
names-and-codes-for-administrative-geography/index,Thanet District Council,18/01/2013,N/A,384.82,REDACTED PERSONAL DATA,N/A,Director of Operational Services,Revenue,Transport Related Expenditure
names-and-codes-for-administrative-geography/index,Thanet District Council,18/01/2013,N/A,820.71,REDACTED PERSONAL DATA,N/A,Director of Operational Services,Revenue,Transport Related Expenditure
names-and-codes-for-administrative-geography/index,Thanet District Council,18/01/2013,N/A,640.52,REDACTED PERSONAL DATA,N/A,East Kent Shared Services,Revenue,Transport Related Expenditure
names-and-codes-for-administrative-geography/index,Thanet District Council,18/01/2013,N/A,366.76,REDACTED PERSONAL DATA,N/A,Director of Operational Services,Revenue,Transport Related Expenditure
names-and-codes-for-administrative-geography/index,Thanet District Council,18/01/2013,N/A,309.90,REDACTED PERSONAL DATA,N/A,Director of Community Services,Revenue,Transport Related Expenditure
names-and-codes-for-administrative-geography/index,Thanet District Council,18/01/2013,N/A,362.02,REDACTED PERSONAL DATA,N/A,Director of Corporate Services and Transformation,Revenue,Transport Related Expenditure
names-and-codes-for-administrative-geography/index,Thanet District Council,18/01/2013,N/A,255.88,REDACTED PERSONAL DATA,N/A,Director of Corporate Services and Transformation,Revenue,Transport Related Expenditure
names-and-codes-for-administrative-geography/index,Thanet District Council,18/01/2013,N/A,522.18,REDACTED PERSONAL DATA,N/A,Director of Operational Services,Revenue,Transport Related Expenditure
names-and-codes-for-administrative-geography/index,Thanet District Council,18/01/2013,N/A,797.99,REDACTED PERSONAL DATA,N/A,Director of Community Services,Revenue,Supplies and Services
names-and-codes-for-administrative-geography/index,Thanet District Council,18/01/2013,N/A,407.51,REDACTED PERSONAL DATA,N/A,East Kent Shared Services,Revenue,Transport Related Expenditure
names-and-codes-for-administrative-geography/index,Thanet District Council,22/01/2013,329687,558.20,Albion Fencing Kent Ltd,ALB005,Director of Community Services,Revenue,Premises Related Expenditure
names-and-codes-for-administrative-geography/index,Thanet District Council,22/01/2013,330254,390.00,Amber Driver Training,AMB004,Director of Operational Services,Revenue,Supplies and Services
names-and-codes-for-administrative-geography/index,Thanet District Council,22/01/2013,330135,276.85,Blackhurst Wade,BLA004,Director of Operational Services,Revenue,Transport Related Expenditure
names-and-codes-for-administrative-geography/index,Thanet District Council,22/01/2013,329794,2450.00,Bloomsbury Publishing Plc,BLO009,Director of Operational Services,Revenue,Supplies and Services
names-and-codes-for-administrative-geography/index,Thanet District Council,22/01/2013,329733,1364.00,Bridge Security Cctv Ltd,BRI039,Director of Community Services,Revenue,Supplies and Services
names-and-codes-for-administrative-geography/index,Thanet District Council,22/01/2013,330243,1590.00,Bridge Security Monitoring Ltd,BRI040,Director of Operational Services,Revenue,Supplies and Services
names-and-codes-for-administrative-geography/index,Thanet District Council,22/01/2013,329675,4987.00,British Ports Association,BPA002,Director of Operational Services,Revenue,Supplies and Services
names-and-codes-for-administrative-geography/index,Thanet District Council,22/01/2013,330228,320.00,Cave Creative,CAV002,Director of Community Services,Revenue,Supplies and Services
names-and-codes-for-administrative-geography/index,Thanet District Council,22/01/2013,330082,322.22,Channel Commercials Plc,CCO001,Director of Operational Services,Revenue,Transport Related Expenditure
names-and-codes-for-administrative-geography/index,Thanet District Council,22/01/2013,330084,335.36,Channel Commercials Plc,CCO001,Director of Operational Services,Revenue,Transport Related Expenditure
names-and-codes-for-administrative-geography/index,Thanet District Council,22/01/2013,330085,512.17,Channel Commercials Plc,CCO001,Director of Operational Services,Revenue,Transport Related Expenditure
names-and-codes-for-administrative-geography/index,Thanet District Council,22/01/2013,330240,230.00,Chatterbox Ltd,CHA006,East Kent Shared Services,Revenue,Supplies and Services
names-and-codes-for-administrative-geography/index,Thanet District Council,22/01/2013,330201,35000.00,Civica Uk Ltd,CIV003,East Kent Shared Services,Revenue,Supplies and Services
names-and-codes-for-administrative-geography/index,Thanet District Council,22/01/2013,330232,850.00,Civica Uk Ltd,CIV003,East Kent Shared Services,Revenue,Supplies and Services
names-and-codes-for-administrative-geography/index,Thanet District Council,22/01/2013,330233,35000.00,Civica Uk Ltd,CIV003,East Kent Shared Services,Revenue,Supplies and Services
names-and-codes-for-administrative-geography/index,Thanet District Council,22/01/2013,330278,1860.46,Civica Uk Ltd,CIV003,East Kent Shared Services,Revenue,Supplies and Services
names-and-codes-for-administrative-geography/index,Thanet District Council,22/01/2013,330215,305.00,Clear Picture Services Limited,CLE015,Director of Corporate Services and Transformation,Balance Sheet,Current Assets
names-and-codes-for-administrative-geography/index,Thanet District Council,22/01/2013,330216,305.00,Clear Picture Services Limited,CLE015,Director of Corporate Services and Transformation,Balance Sheet,Current Assets
names-and-codes-for-administrative-geography/index,Thanet District Council,22/01/2013,330217,305.00,Clear Picture Services Limited,CLE015,Director of Corporate Services and Transformation,Balance Sheet,Current Assets
names-and-codes-for-administrative-geography/index,Thanet District Council,22/01/2013,327235,26721.31,Communities & Local Government Only,COM047,Director of Corporate Services and Transformation,Balance Sheet,Long Term Assets
names-and-codes-for-administrative-geography/index,Thanet District Council,22/01/2013,330063,681.88,D W Windsor Ltd,WIN004,Director of Operational Services,Revenue,Premises Related Expenditure
names-and-codes-for-administrative-geography/index,Thanet District Council,22/01/2013,329750,397.00,Dave Hanna Electrical Services,HAN018,East Kent Shared Services,Revenue,Supplies and Services
names-and-codes-for-administrative-geography/index,Thanet District Council,22/01/2013,330231,320.74,Dennis Eagle Ltd,DEN005,Director of Operational Services,Revenue,Transport Related Expenditure
names-and-codes-for-administrative-geography/index,Thanet District Council,22/01/2013,330195,704.00,Disclosure And Barring Service,DIS017,Director of Corporate Services and Transformation,Revenue,Supplies and Services
names-and-codes-for-administrative-geography/index,Thanet District Council,22/01/2013,329224,2025.00,Dover District Council,DOV001,Director of Corporate Services and Transformation,Revenue,Supplies and Services
names-and-codes-for-administrative-geography/index,Thanet District Council,22/01/2013,330244,336.25,Dover District Council,DOV001,Director of Corporate Services and Transformation,Revenue,Employees
names-and-codes-for-administrative-geography/index,Thanet District Council,22/01/2013,330273,20653.94,Dover District Council,DOV001,Director of Corporate Services and Transformation,Revenue,Supplies and Services
names-and-codes-for-administrative-geography/index,Thanet District Council,22/01/2013,330274,114900.00,Dover District Council,DOV001,Director of Corporate Services and Transformation,Revenue,Supplies and Services
names-and-codes-for-administrative-geography/index,Thanet District Council,22/01/2013,330093,877.79,Edf Energy 1 Ltd,SEE012,Director of Corporate Services and Transformation,Revenue,Premises Related Expenditure
names-and-codes-for-administrative-geography/index,Thanet District Council,22/01/2013,330093,14.52,Edf Energy 1 Ltd,SEE012,Director of Community Services,Revenue,Premises Related Expenditure
names-and-codes-for-administrative-geography/index,Thanet District Council,22/01/2013,330093,633.42,Edf Energy 1 Ltd,SEE012,Director of Operational Services,Revenue,Premises Related Expenditure
names-and-codes-for-administrative-geography/index,Thanet District Council,22/01/2013,330110,323.90,Edf Energy 1 Ltd,SEE012,Director of Operational Services,Revenue,Premises Related Expenditure
names-and-codes-for-administrative-geography/index,Thanet District Council,22/01/2013,330111,281.76,Edf Energy 1 Ltd,SEE012,Director of Operational Services,Revenue,Premises Related Expenditure
names-and-codes-for-administrative-geography/index,Thanet District Council,22/01/2013,330113,273.53,Edf Energy 1 Ltd,SEE012,Director of Operational Services,Revenue,Premises Related Expenditure
names-and-codes-for-administrative-geography/index,Thanet District Council,22/01/2013,330253,555.00,Envirocure Ltd,ENV011,Director of Operational Services,Revenue,Premises Related Expenditure
names-and-codes-for-administrative-geography/index,Thanet District Council,22/01/2013,329664,305.00,Foster Plumbing,FOS001,Director of Operational Services,Revenue,Premises Related Expenditure
names-and-codes-for-administrative-geography/index,Thanet District Council,22/01/2013,329734,450.00,Freeflow Limited,FRE010,Director of Operational Services,Revenue,Premises Related Expenditure
names-and-codes-for-administrative-geography/index,Thanet District Council,22/01/2013,330099,350.00,George Mccabe,MCC001,Director of Operational Services,Revenue,Premises Related Expenditure
names-and-codes-for-administrative-geography/index,Thanet District Council,22/01/2013,329686,667.62,Greenham,GRE001,Director of Operational Services,Revenue,Premises Related Expenditure
names-and-codes-for-administrative-geography/index,Thanet District Council,22/01/2013,330047,417.63,Greenham,GRE001,Director of Operational Services,Revenue,Premises Related Expenditure
names-and-codes-for-administrative-geography/index,Thanet District Council,22/01/2013,330125,690.10,Hands On Suppliers Ltd,HAN007,Director of Operational Services,Revenue,Supplies and Services
names-and-codes-for-administrative-geography/index,Thanet District Council,22/01/2013,328944,14000.00,Hartsdown Technology College,HAR013,Director of Community Services,Revenue,Supplies and Services
names-and-codes-for-administrative-geography/index,Thanet District Council,22/01/2013,330292,11000.00,Heath Lambert Limited (Client Money),HEA011,Director of Corporate Services and Transformation,Balance Sheet,Current Assets
names-and-codes-for-administrative-geography/index,Thanet District Council,22/01/2013,329609,375.00,Hi Way Services Ltd,HIW002,Director of Operational Services,Revenue,Premises Related Expenditure
names-and-codes-for-administrative-geography/index,Thanet District Council,22/01/2013,329610,650.00,Hi Way Services Ltd,HIW002,Director of Operational Services,Revenue,Premises Related Expenditure
names-and-codes-for-administrative-geography/index,Thanet District Council,22/01/2013,330236,650.00,Hi Way Services Ltd,HIW002,Director of Operational Services,Revenue,Premises Related Expenditure
names-and-codes-for-administrative-geography/index,Thanet District Council,22/01/2013,330105,264.00,Hr Go Recruitment Ltd,HRG002,Director of Operational Services,Revenue,Employees
names-and-codes-for-administrative-geography/index,Thanet District Council,22/01/2013,330106,3869.40,Hr Go Recruitment Ltd,HRG002,Director of Operational Services,Revenue,Employees
names-and-codes-for-administrative-geography/index,Thanet District Council,22/01/2013,330107,5448.30,Hr Go Recruitment Ltd,HRG002,Director of Operational Services,Revenue,Employees
names-and-codes-for-administrative-geography/index,Thanet District Council,22/01/2013,330203,895.00,J Redpath Buchanan & Co Ltd,RED001,Director of Corporate Services and Transformation,Balance Sheet,Current Assets
names-and-codes-for-administrative-geography/index,Thanet District Council,22/01/2013,330204,345.00,J Redpath Buchanan & Co Ltd,RED001,Director of Corporate Services and Transformation,Balance Sheet,Current Assets
names-and-codes-for-administrative-geography/index,Thanet District Council,22/01/2013,330205,695.00,J Redpath Buchanan & Co Ltd,RED001,Director of Corporate Services and Transformation,Balance Sheet,Current Assets
names-and-codes-for-administrative-geography/index,Thanet District Council,22/01/2013,320596,700.00,Kent County Council,KCC002,Director of Community Services,Revenue,Supplies and Services
names-and-codes-for-administrative-geography/index,Thanet District Council,22/01/2013,329795,215.00,Kent County Council,KCC002,Director of Corporate Services and Transformation,Revenue,Supplies and Services
names-and-codes-for-administrative-geography/index,Thanet District Council,22/01/2013,330210,350.00,Kent County Council,KCC002,Director of Operational Services,Revenue,Supplies and Services
names-and-codes-for-administrative-geography/index,Thanet District Council,22/01/2013,329623,378.95,Kent County Council (Kcs),KCC003,Director of Operational Services,Revenue,Premises Related Expenditure
names-and-codes-for-administrative-geography/index,Thanet District Council,22/01/2013,329775,5623.28,Kent County Council (Kcs),KCC003,Director of Operational Services,Revenue,Premises Related Expenditure
names-and-codes-for-administrative-geography/index,Thanet District Council,22/01/2013,329776,15060.17,Kent County Council (Kcs),KCC003,Director of Operational Services,Revenue,Premises Related Expenditure
names-and-codes-for-administrative-geography/index,Thanet District Council,22/01/2013,329777,346.74,Kent County Council (Kcs),KCC003,Director of Operational Services,Revenue,Premises Related Expenditure
names-and-codes-for-administrative-geography/index,Thanet District Council,22/01/2013,329778,2204.90,Kent County Council (Kcs),KCC003,Director of Operational Services,Revenue,Premises Related Expenditure
names-and-codes-for-administrative-geography/index,Thanet District Council,22/01/2013,329779,339.83,Kent County Council (Kcs),KCC003,Director of Operational Services,Revenue,Premises Related Expenditure
names-and-codes-for-administrative-geography/index,Thanet District Council,22/01/2013,329780,555.91,Kent County Council (Kcs),KCC003,Director of Operational Services,Revenue,Premises Related Expenditure
names-and-codes-for-administrative-geography/index,Thanet District Council,22/01/2013,329781,1475.00,Kent County Council (Kcs),KCC003,Director of Operational Services,Revenue,Premises Related Expenditure
names-and-codes-for-administrative-geography/index,Thanet District Council,22/01/2013,329782,1693.41,Kent County Council (Kcs),KCC003,Director of Community Services,Revenue,Premises Related Expenditure
names-and-codes-for-administrative-geography/index,Thanet District Council,22/01/2013,329783,1109.48,Kent County Council (Kcs),KCC003,Director of Operational Services,Revenue,Premises Related Expenditure
names-and-codes-for-administrative-geography/index,Thanet District Council,22/01/2013,329784,363.11,Kent County Council (Kcs),KCC003,Director of Operational Services,Revenue,Premises Related Expenditure
names-and-codes-for-administrative-geography/index,Thanet District Council,22/01/2013,329786,1882.96,Kent County Council (Kcs),KCC003,Director of Operational Services,Revenue,Premises Related Expenditure
names-and-codes-for-administrative-geography/index,Thanet District Council,22/01/2013,329788,6028.53,Kent County Council (Kcs),KCC003,Director of Operational Services,Revenue,Premises Related Expenditure
names-and-codes-for-administrative-geography/index,Thanet District Council,22/01/2013,330260,400.17,Kent County Council (Kcs),KCC003,Director of Corporate Services and Transformation,Revenue,Supplies and Services
names-and-codes-for-administrative-geography/index,Thanet District Council,22/01/2013,330062,3750.00,Kent County Council Re Pension Fund,KCC001,Director of Corporate Services and Transformation,Revenue,Employees
names-and-codes-for-administrative-geography/index,Thanet District Council,22/01/2013,330109,2116.98,Level 3 Communications (Uk) Ltd,LEV005,Director of Corporate Services and Transformation,Balance Sheet,Current Assets
names-and-codes-for-administrative-geography/index,Thanet District Council,22/01/2013,330293,890.00,Marinetek Uk Ltd,MAR062,Director of Operational Services,Revenue,Premises Related Expenditure
names-and-codes-for-administrative-geography/index,Thanet District Council,22/01/2013,330280,63474.73,Mears Ltd,MEA003,Director of Corporate Services and Transformation,Balance Sheet,Current Assets
names-and-codes-for-administrative-geography/index,Thanet District Council,22/01/2013,330212,2156.50,Michael Page Finance,PAG008,Director of Corporate Services and Transformation,Revenue,Employees
names-and-codes-for-administrative-geography/index,Thanet District Council,22/01/2013,329688,543.06,Morgan Jones Ltd,MOR001,East Kent Shared Services,Revenue,Employees
names-and-codes-for-administrative-geography/index,Thanet District Council,22/01/2013,330275,905.10,Morgan Jones Ltd,MOR001,East Kent Shared Services,Revenue,Employees
names-and-codes-for-administrative-geography/index,Thanet District Council,22/01/2013,329653,6672.00,Mr Philip Woolfe,WOO030,Director of Operational Services,Revenue,Supplies and Services
names-and-codes-for-administrative-geography/index,Thanet District Council,22/01/2013,329212,27900.00,N E Murray Marine Contractors,MUR001,Director of Operational Services,Revenue,Third Party Payments
names-and-codes-for-administrative-geography/index,Thanet District Council,22/01/2013,330394,254.51,Nat West Bank,NWE001,Director of Corporate Services and Transformation,Revenue,Supplies and Services
names-and-codes-for-administrative-geography/index,Thanet District Council,22/01/2013,330347,1125.00,Ncc Services Ltd,NCC003,Director of Corporate Services and Transformation,Revenue,Supplies and Services
names-and-codes-for-administrative-geography/index,Thanet District Council,22/01/2013,329965,32716.00,Northgate Inf Solutions Uk Ltd,NOR018,Director of Corporate Services and Transformation,Revenue,Supplies and Services
names-and-codes-for-administrative-geography/index,Thanet District Council,22/01/2013,330121,875.47,Npower Limited,NPO001,Director of Community Services,Revenue,Premises Related Expenditure
names-and-codes-for-administrative-geography/index,Thanet District Council,22/01/2013,330199,375.88,Oracle Corporation Uk Ltd,ORA001,East Kent Shared Services,Revenue,Supplies and Services
names-and-codes-for-administrative-geography/index,Thanet District Council,22/01/2013,330096,286.27,Orange Personal Communications Ltd,ORA002,Director of Corporate Services and Transformation,Revenue,Supplies and Services
names-and-codes-for-administrative-geography/index,Thanet District Council,22/01/2013,330250,9976.10,Probrand Ltd,PRO012,East Kent Shared Services,Revenue,Supplies and Services
names-and-codes-for-administrative-geography/index,Thanet District Council,22/01/2013,329633,300.00,Puls Global Ltd,PUL006,Director of Operational Services,Revenue,Supplies and Services
names-and-codes-for-administrative-geography/index,Thanet District Council,22/01/2013,329634,300.00,Puls Global Ltd,PUL006,Director of Operational Services,Revenue,Supplies and Services
names-and-codes-for-administrative-geography/index,Thanet District Council,22/01/2013,329724,600.00,R J Broadley Tree Surgery,RJB002,Director of Operational Services,Revenue,Premises Related Expenditure
names-and-codes-for-administrative-geography/index,Thanet District Council,22/01/2013,330277,1000.00,Reed Business Information Ltd,REE002,Director of Operational Services,Revenue,Employees
names-and-codes-for-administrative-geography/index,Thanet District Council,22/01/2013,329736,270.00,Rics,RIC007,Director of Operational Services,Revenue,Supplies and Services
names-and-codes-for-administrative-geography/index,Thanet District Council,22/01/2013,330108,425.00,Rospa,ROS003,Director of Operational Services,Revenue,Supplies and Services
names-and-codes-for-administrative-geography/index,Thanet District Council,22/01/2013,330087,404.74,Sba Ltd,SBA001,Director of Operational Services,Revenue,Supplies and Services
names-and-codes-for-administrative-geography/index,Thanet District Council,22/01/2013,329063,1659.87,Seasafe Systems Ltd,SEA004,Director of Operational Services,Revenue,Premises Related Expenditure
names-and-codes-for-administrative-geography/index,Thanet District Council,22/01/2013,329063,131.63,Seasafe Systems Ltd,SEA004,Director of Operational Services,Revenue,Supplies and Services
names-and-codes-for-administrative-geography/index,Thanet District Council,22/01/2013,329740,1310.00,Sharp & Enright,SHA007,Director of Operational Services,Revenue,Premises Related Expenditure
names-and-codes-for-administrative-geography/index,Thanet District Council,22/01/2013,329792,3050.00,Shoreline Surveys Limited,SHO001,Director of Operational Services,Revenue,Premises Related Expenditure
names-and-codes-for-administrative-geography/index,Thanet District Council,22/01/2013,330220,303.40,Southern Paper,SPA002,Director of Corporate Services and Transformation,Revenue,Supplies and Services
names-and-codes-for-administrative-geography/index,Thanet District Council,22/01/2013,330122,293.82,Southern Water,SWA001,Director of Community Services,Revenue,Premises Related Expenditure
names-and-codes-for-administrative-geography/index,Thanet District Council,22/01/2013,330354,4151.30,Southern Water,SWA004,Director of Operational Services,Revenue,Supplies and Services
names-and-codes-for-administrative-geography/index,Thanet District Council,22/01/2013,329106,325.00,Structural & Weld Testing Ltd,STR035,Director of Operational Services,Revenue,Employees
names-and-codes-for-administrative-geography/index,Thanet District Council,22/01/2013,329804,448.80,Supplies Team,SUP001,Director of Corporate Services and Transformation,Revenue,Supplies and Services
names-and-codes-for-administrative-geography/index,Thanet District Council,22/01/2013,329805,16.88,Supplies Team,SUP001,Director of Corporate Services and Transformation,Revenue,Supplies and Services
names-and-codes-for-administrative-geography/index,Thanet District Council,22/01/2013,329805,390.22,Supplies Team,SUP001,Director of Operational Services,Revenue,Supplies and Services
names-and-codes-for-administrative-geography/index,Thanet District Council,22/01/2013,329766,299.00,The Consultation Institute,CON029,Director of Corporate Services and Transformation,Revenue,Supplies and Services
names-and-codes-for-administrative-geography/index,Thanet District Council,22/01/2013,330055,605.00,Transeuropa Ferries,TRA041,Director of Corporate Services and Transformation,Balance Sheet,Current Assets
names-and-codes-for-administrative-geography/index,Thanet District Council,22/01/2013,330056,755.00,Transeuropa Ferries,TRA041,Director of Corporate Services and Transformation,Balance Sheet,Current Assets
names-and-codes-for-administrative-geography/index,Thanet District Council,22/01/2013,329612,116.40,Veolia Es (Uk) Ltd,VEO001,Director of Corporate Services and Transformation,Balance Sheet,Current Assets
names-and-codes-for-administrative-geography/index,Thanet District Council,22/01/2013,329612,804.62,Veolia Es (Uk) Ltd,VEO001,Director of Operational Services,Revenue,Premises Related Expenditure
names-and-codes-for-administrative-geography/index,Thanet District Council,22/01/2013,329618,810.00,W Brazil & Bros,BRA001,Director of Operational Services,Revenue,Premises Related Expenditure
names-and-codes-for-administrative-geography/index,Thanet District Council,22/01/2013,330064,285.00,W Brazil & Bros,BRA001,Director of Corporate Services and Transformation,Balance Sheet,Current Assets
names-and-codes-for-administrative-geography/index,Thanet District Council,22/01/2013,330066,380.00,W Brazil & Bros,BRA001,Director of Corporate Services and Transformation,Balance Sheet,Current Assets
names-and-codes-for-administrative-geography/index,Thanet District Council,22/01/2013,329745,244.44,W G Burbridge,BUR016,Director of Operational Services,Revenue,Premises Related Expenditure
names-and-codes-for-administrative-geography/index,Thanet District Council,23/01/2013,330387,-440735.00,Secretary Of State,SEC003,Director of Corporate Services and Transformation,Revenue,Revenue Financing
names-and-codes-for-administrative-geography/index,Thanet District Council,23/01/2013,330387,1451821.00,Secretary Of State,SEC003,Director of Corporate Services and Transformation,Balance Sheet,Current Liabilities
names-and-codes-for-administrative-geography/index,Thanet District Council,23/01/2013,330389,-440735.00,Secretary Of State,SEC003,Director of Corporate Services and Transformation,Revenue,Revenue Financing
names-and-codes-for-administrative-geography/index,Thanet District Council,23/01/2013,330389,1451820.00,Secretary Of State,SEC003,Director of Corporate Services and Transformation,Balance Sheet,Current Liabilities
names-and-codes-for-administrative-geography/index,Thanet District Council,28/01/2013,N/A,773.56,J P Lennard Ltd,N/A,Director of Community Services,Revenue,Supplies and Services
names-and-codes-for-administrative-geography/index,Thanet District Council,28/01/2013,N/A,499.54,Neopost,N/A,Director of Operational Services,Revenue,Supplies and Services
names-and-codes-for-administrative-geography/index,Thanet District Council,28/01/2013,N/A,1597.03,Overland Storage Inc,N/A,East Kent Shared Services,Revenue,Supplies and Services
names-and-codes-for-administrative-geography/index,Thanet District Council,28/01/2013,N/A,294.00,Webtis,N/A,East Kent Shared Services,Revenue,Transport Related Expenditure
names-and-codes-for-administrative-geography/index,Thanet District Council,29/01/2013,330317,604.95,Adecco Uk Ltd,ADE005,Director of Corporate Services and Transformation,Revenue,Employees
names-and-codes-for-administrative-geography/index,Thanet District Council,29/01/2013,330579,10900.38,Advanced Business Solutions,COA011,Director of Corporate Services and Transformation,Revenue,Supplies and Services
names-and-codes-for-administrative-geography/index,Thanet District Council,29/01/2013,330571,134.52,Allstar Business Solutions Ltd,ALL038,Director of Operational Services,Revenue,Supplies and Services
names-and-codes-for-administrative-geography/index,Thanet District Council,29/01/2013,330571,117.61,Allstar Business Solutions Ltd,ALL038,Director of Operational Services,Revenue,Transport Related Expenditure
names-and-codes-for-administrative-geography/index,Thanet District Council,29/01/2013,330539,320.00,Assettrac Ltd,ASS012,Director of Operational Services,Revenue,Premises Related Expenditure
names-and-codes-for-administrative-geography/index,Thanet District Council,29/01/2013,329806,10780.00,Blue Sail Consulting Ltd,BLU011,Director of Community Services,Revenue,Supplies and Services
names-and-codes-for-administrative-geography/index,Thanet District Council,29/01/2013,330374,2323.92,Bridge Security Cctv Ltd,BRI039,Director of Operational Services,Revenue,Supplies and Services
names-and-codes-for-administrative-geography/index,Thanet District Council,29/01/2013,330376,542.88,Bridge Security Cctv Ltd,BRI039,Director of Operational Services,Revenue,Supplies and Services
names-and-codes-for-administrative-geography/index,Thanet District Council,29/01/2013,330557,1120.88,Bridge Security Cctv Ltd,BRI039,Director of Operational Services,Revenue,Supplies and Services
names-and-codes-for-administrative-geography/index,Thanet District Council,29/01/2013,330675,1310.00,Broadstairs Carpets Ltd,BRO069,Director of Operational Services,Revenue,Premises Related Expenditure
names-and-codes-for-administrative-geography/index,Thanet District Council,29/01/2013,330088,2750.00,Canterbury City Council,CAN004,Director of Operational Services,Revenue,Supplies and Services
names-and-codes-for-administrative-geography/index,Thanet District Council,29/01/2013,330089,1835.00,Canterbury City Council,CAN004,Director of Operational Services,Revenue,Supplies and Services
names-and-codes-for-administrative-geography/index,Thanet District Council,29/01/2013,330360,341.48,Caxtons,CAX005,Director of Operational Services,Revenue,Premises Related Expenditure
names-and-codes-for-administrative-geography/index,Thanet District Council,29/01/2013,330665,-322.22,Channel Commercials Plc,CCO001,Director of Operational Services,Revenue,Transport Related Expenditure
names-and-codes-for-administrative-geography/index,Thanet District Council,29/01/2013,330671,402.44,Channel Commercials Plc,CCO001,Director of Operational Services,Revenue,Transport Related Expenditure
names-and-codes-for-administrative-geography/index,Thanet District Council,29/01/2013,330673,700.00,Channel Commercials Plc,CCO001,Director of Operational Services,Revenue,Transport Related Expenditure
names-and-codes-for-administrative-geography/index,Thanet District Council,29/01/2013,330054,615.00,Charles Bates (Kent) Ltd,BAT001,Director of Operational Services,Revenue,Premises Related Expenditure
names-and-codes-for-administrative-geography/index,Thanet District Council,29/01/2013,330669,650.00,Civica Uk Ltd,CIV003,East Kent Shared Services,Revenue,Supplies and Services
names-and-codes-for-administrative-geography/index,Thanet District Council,29/01/2013,330644,976.00,Clear Picture Services Limited,CLE015,Director of Corporate Services and Transformation,Balance Sheet,Current Assets
names-and-codes-for-administrative-geography/index,Thanet District Council,29/01/2013,330809,969.79,Co-Operative Bank Paypoint,COO018,Director of Corporate Services and Transformation,Revenue,Supplies and Services
names-and-codes-for-administrative-geography/index,Thanet District Council,29/01/2013,330809,323.27,Co-Operative Bank Paypoint,COO018,Director of Community Services,Revenue,Supplies and Services
names-and-codes-for-administrative-geography/index,Thanet District Council,29/01/2013,330695,48343.10,D C L G,DCL002,Director of Corporate Services and Transformation,Balance Sheet,Reserves
names-and-codes-for-administrative-geography/index,Thanet District Council,29/01/2013,329735,21750.00,Dover Harbour Board,DOV006,Director of Operational Services,Revenue,Premises Related Expenditure
names-and-codes-for-administrative-geography/index,Thanet District Council,29/01/2013,330405,799.80,E Saunders Margate Ltd,SAU001,Director of Operational Services,Revenue,Premises Related Expenditure
names-and-codes-for-administrative-geography/index,Thanet District Council,29/01/2013,330407,54.34,E Saunders Margate Ltd,SAU001,Director of Community Services,Revenue,Premises Related Expenditure
names-and-codes-for-administrative-geography/index,Thanet District Council,29/01/2013,330407,724.31,E Saunders Margate Ltd,SAU001,Director of Operational Services,Revenue,Premises Related Expenditure
names-and-codes-for-administrative-geography/index,Thanet District Council,29/01/2013,330726,114070.00,East Kent Housing Ltd,EKH002,Director of Community Services,Revenue,Third Party Payments
names-and-codes-for-administrative-geography/index,Thanet District Council,29/01/2013,330732,42664.00,East Kent Opportunities,EKO001,Director of Community Services,Revenue,Supplies and Services
names-and-codes-for-administrative-geography/index,Thanet District Council,29/01/2013,329223,4000.00,Gardiner & Theobald Llp,GAR020,Director of Corporate Services and Transformation,Balance Sheet,Long Term Assets
names-and-codes-for-administrative-geography/index,Thanet District Council,29/01/2013,330625,2287.00,Glasdon Uk Ltd,GLA001,Director of Operational Services,Revenue,Supplies and Services
names-and-codes-for-administrative-geography/index,Thanet District Council,29/01/2013,330719,8160.00,Groundwork Kent & Medway,GRO015,Director of Operational Services,Revenue,Supplies and Services
names-and-codes-for-administrative-geography/index,Thanet District Council,29/01/2013,330567,1683.72,Handicare Uk Ltd,HAN017,Director of Corporate Services and Transformation,Balance Sheet,Long Term Assets
names-and-codes-for-administrative-geography/index,Thanet District Council,29/01/2013,325283,8998.12,Holbrook Revell Electrical Ltd,HOL015,Director of Operational Services,Revenue,Premises Related Expenditure
names-and-codes-for-administrative-geography/index,Thanet District Council,29/01/2013,329725,4590.00,Holbrook Revell Electrical Ltd,HOL015,Director of Operational Services,Revenue,Premises Related Expenditure
names-and-codes-for-administrative-geography/index,Thanet District Council,29/01/2013,329727,2933.18,Holbrook Revell Electrical Ltd,HOL015,Director of Operational Services,Revenue,Premises Related Expenditure
names-and-codes-for-administrative-geography/index,Thanet District Council,29/01/2013,329738,2712.04,Holbrook Revell Electrical Ltd,HOL015,Director of Operational Services,Revenue,Premises Related Expenditure
names-and-codes-for-administrative-geography/index,Thanet District Council,29/01/2013,329753,1994.44,Holbrook Revell Electrical Ltd,HOL015,Director of Operational Services,Revenue,Premises Related Expenditure
names-and-codes-for-administrative-geography/index,Thanet District Council,29/01/2013,329754,1562.88,Holbrook Revell Electrical Ltd,HOL015,Director of Operational Services,Revenue,Premises Related Expenditure
names-and-codes-for-administrative-geography/index,Thanet District Council,29/01/2013,330131,1468.30,Holbrook Revell Electrical Ltd,HOL015,Director of Corporate Services and Transformation,Balance Sheet,Current Assets
names-and-codes-for-administrative-geography/index,Thanet District Council,29/01/2013,330131,2687.65,Holbrook Revell Electrical Ltd,HOL015,Director of Operational Services,Revenue,Premises Related Expenditure
names-and-codes-for-administrative-geography/index,Thanet District Council,29/01/2013,330138,2283.26,Holbrook Revell Electrical Ltd,HOL015,Director of Operational Services,Revenue,Premises Related Expenditure
names-and-codes-for-administrative-geography/index,Thanet District Council,29/01/2013,330138,146.01,Holbrook Revell Electrical Ltd,HOL015,Director of Operational Services,Revenue,Supplies and Services
names-and-codes-for-administrative-geography/index,Thanet District Council,29/01/2013,330139,181.78,Holbrook Revell Electrical Ltd,HOL015,Director of Corporate Services and Transformation,Balance Sheet,Current Assets
names-and-codes-for-administrative-geography/index,Thanet District Council,29/01/2013,330139,4519.89,Holbrook Revell Electrical Ltd,HOL015,Director of Operational Services,Revenue,Premises Related Expenditure
names-and-codes-for-administrative-geography/index,Thanet District Council,29/01/2013,330139,1080.36,Holbrook Revell Electrical Ltd,HOL015,Director of Operational Services,Revenue,Supplies and Services
names-and-codes-for-administrative-geography/index,Thanet District Council,29/01/2013,330550,3735.52,Hr Go Recruitment Ltd,HRG002,Director of Operational Services,Revenue,Employees
names-and-codes-for-administrative-geography/index,Thanet District Council,29/01/2013,330551,4324.31,Hr Go Recruitment Ltd,HRG002,Director of Operational Services,Revenue,Employees
names-and-codes-for-administrative-geography/index,Thanet District Council,29/01/2013,330552,444.00,Hr Go Recruitment Ltd,HRG002,Director of Operational Services,Revenue,Employees
names-and-codes-for-administrative-geography/index,Thanet District Council,29/01/2013,327863,1406.20,Idox Software  Limited,IDO001,Director of Corporate Services and Transformation,Revenue,Supplies and Services
names-and-codes-for-administrative-geography/index,Thanet District Council,29/01/2013,328714,3139.54,Idox Software  Limited,IDO001,Director of Corporate Services and Transformation,Revenue,Supplies and Services
names-and-codes-for-administrative-geography/index,Thanet District Council,29/01/2013,330780,796.50,Inside Housing Solutions,INS025,Director of Community Services,Revenue,Supplies and Services
names-and-codes-for-administrative-geography/index,Thanet District Council,29/01/2013,330584,800.00,James Smith(Planning Law Servcs)Ltd,SMI043,Director of Community Services,Revenue,Supplies and Services
names-and-codes-for-administrative-geography/index,Thanet District Council,29/01/2013,330077,3180.00,Kent County Council,KCC002,Director of Community Services,Revenue,Supplies and Services
names-and-codes-for-administrative-geography/index,Thanet District Council,29/01/2013,330314,5000.00,Kent County Council,KCC002,Director of Community Services,Revenue,Premises Related Expenditure
names-and-codes-for-administrative-geography/index,Thanet District Council,29/01/2013,330281,1551.91,Kent County Council (Kcs),KCC003,Director of Operational Services,Revenue,Premises Related Expenditure
names-and-codes-for-administrative-geography/index,Thanet District Council,29/01/2013,330282,1887.02,Kent County Council (Kcs),KCC003,Director of Operational Services,Revenue,Premises Related Expenditure
names-and-codes-for-administrative-geography/index,Thanet District Council,29/01/2013,330283,1665.35,Kent County Council (Kcs),KCC003,Director of Operational Services,Revenue,Premises Related Expenditure
names-and-codes-for-administrative-geography/index,Thanet District Council,29/01/2013,330284,1778.49,Kent County Council (Kcs),KCC003,Director of Operational Services,Revenue,Premises Related Expenditure
names-and-codes-for-administrative-geography/index,Thanet District Council,29/01/2013,328377,1442.00,Lednor Construction Limited,LED003,Director of Corporate Services and Transformation,Balance Sheet,Current Assets
names-and-codes-for-administrative-geography/index,Thanet District Council,29/01/2013,328378,1442.00,Lednor Construction Limited,LED003,Director of Corporate Services and Transformation,Balance Sheet,Current Assets
names-and-codes-for-administrative-geography/index,Thanet District Council,29/01/2013,328379,2066.00,Lednor Construction Limited,LED003,Director of Corporate Services and Transformation,Balance Sheet,Current Assets
names-and-codes-for-administrative-geography/index,Thanet District Council,29/01/2013,328383,240.00,Lednor Construction Limited,LED003,Director of Corporate Services and Transformation,Balance Sheet,Current Assets
names-and-codes-for-administrative-geography/index,Thanet District Council,29/01/2013,328384,3360.00,Lednor Construction Limited,LED003,Director of Corporate Services and Transformation,Balance Sheet,Current Assets
names-and-codes-for-administrative-geography/index,Thanet District Council,29/01/2013,328385,1442.00,Lednor Construction Limited,LED003,Director of Corporate Services and Transformation,Balance Sheet,Current Assets
names-and-codes-for-administrative-geography/index,Thanet District Council,29/01/2013,328386,2066.00,Lednor Construction Limited,LED003,Director of Corporate Services and Transformation,Balance Sheet,Current Assets
names-and-codes-for-administrative-geography/index,Thanet District Council,29/01/2013,328387,1442.00,Lednor Construction Limited,LED003,Director of Corporate Services and Transformation,Balance Sheet,Current Assets
names-and-codes-for-administrative-geography/index,Thanet District Council,29/01/2013,328388,3360.00,Lednor Construction Limited,LED003,Director of Corporate Services and Transformation,Balance Sheet,Current Assets
names-and-codes-for-administrative-geography/index,Thanet District Council,29/01/2013,328389,3360.00,Lednor Construction Limited,LED003,Director of Corporate Services and Transformation,Balance Sheet,Current Assets
names-and-codes-for-administrative-geography/index,Thanet District Council,29/01/2013,328390,1442.00,Lednor Construction Limited,LED003,Director of Corporate Services and Transformation,Balance Sheet,Current Assets
names-and-codes-for-administrative-geography/index,Thanet District Council,29/01/2013,328391,1442.00,Lednor Construction Limited,LED003,Director of Corporate Services and Transformation,Balance Sheet,Current Assets
names-and-codes-for-administrative-geography/index,Thanet District Council,29/01/2013,328392,1442.00,Lednor Construction Limited,LED003,Director of Corporate Services and Transformation,Balance Sheet,Current Assets
names-and-codes-for-administrative-geography/index,Thanet District Council,29/01/2013,329707,1722.00,Lednor Construction Limited,LED003,Director of Corporate Services and Transformation,Balance Sheet,Current Assets
names-and-codes-for-administrative-geography/index,Thanet District Council,29/01/2013,329709,1257.20,Lednor Construction Limited,LED003,Director of Corporate Services and Transformation,Balance Sheet,Current Assets
names-and-codes-for-administrative-geography/index,Thanet District Council,29/01/2013,330299,650.00,Locata (Housing Services) Ltd,LOC015,Director of Community Services,Revenue,Supplies and Services
names-and-codes-for-administrative-geography/index,Thanet District Council,29/01/2013,330337,3000.00,Locata (Housing Services) Ltd,LOC015,Director of Community Services,Revenue,Supplies and Services
names-and-codes-for-administrative-geography/index,Thanet District Council,29/01/2013,330574,27300.00,Locata (Housing Services) Ltd,LOC015,Director of Community Services,Revenue,Supplies and Services
names-and-codes-for-administrative-geography/index,Thanet District Council,29/01/2013,330575,571.85,Locata (Housing Services) Ltd,LOC015,Director of Community Services,Revenue,Supplies and Services
names-and-codes-for-administrative-geography/index,Thanet District Council,29/01/2013,330576,3750.00,Locata (Housing Services) Ltd,LOC015,Director of Community Services,Revenue,Supplies and Services
names-and-codes-for-administrative-geography/index,Thanet District Council,29/01/2013,330577,375.00,Locata (Housing Services) Ltd,LOC015,Director of Community Services,Revenue,Supplies and Services
names-and-codes-for-administrative-geography/index,Thanet District Council,29/01/2013,330578,29661.24,Locata (Housing Services) Ltd,LOC015,Director of Community Services,Revenue,Supplies and Services
names-and-codes-for-administrative-geography/index,Thanet District Council,29/01/2013,330315,497.25,Loomis Uk Ltd,LOO002,Director of Operational Services,Revenue,Supplies and Services
names-and-codes-for-administrative-geography/index,Thanet District Council,29/01/2013,330570,1040.84,Marine Equipment Trader Ltd,MAR083,Director of Operational Services,Revenue,Supplies and Services
names-and-codes-for-administrative-geography/index,Thanet District Council,29/01/2013,329258,229.77,Marlec Marine Ltd,MAR010,Director of Operational Services,Revenue,Premises Related Expenditure
names-and-codes-for-administrative-geography/index,Thanet District Council,29/01/2013,329259,309.15,Marlec Marine Ltd,MAR010,Director of Operational Services,Revenue,Premises Related Expenditure
names-and-codes-for-administrative-geography/index,Thanet District Council,29/01/2013,330548,1415.50,Michael Page Finance,PAG008,Director of Corporate Services and Transformation,Revenue,Employees
names-and-codes-for-administrative-geography/index,Thanet District Council,29/01/2013,330678,905.10,Morgan Jones Ltd,MOR001,East Kent Shared Services,Revenue,Employees
names-and-codes-for-administrative-geography/index,Thanet District Council,29/01/2013,328959,600.00,Mr Christopher Cant,CAN020,Director of Corporate Services and Transformation,Revenue,Supplies and Services
names-and-codes-for-administrative-geography/index,Thanet District Council,29/01/2013,330588,1000.00,Mr N F Powley,POW019,Director of Community Services,Revenue,Supplies and Services
names-and-codes-for-administrative-geography/index,Thanet District Council,29/01/2013,330569,1030.00,Nagels Uk Ltd,NAG001,Director of Operational Services,Revenue,Supplies and Services
names-and-codes-for-administrative-geography/index,Thanet District Council,29/01/2013,330614,6300.00,Ndl-Metascybe Ltd,NDL001,East Kent Shared Services,Revenue,Supplies and Services
names-and-codes-for-administrative-geography/index,Thanet District Council,29/01/2013,330255,360.79,Neopost Ltd,NEO003,Director of Corporate Services and Transformation,Revenue,Supplies and Services
names-and-codes-for-administrative-geography/index,Thanet District Council,29/01/2013,330687,5000.00,Neopost Ltd Credifon,NEO002,Director of Corporate Services and Transformation,Revenue,Supplies and Services
names-and-codes-for-administrative-geography/index,Thanet District Council,29/01/2013,330307,758.54,Ocs Group Uk Ltd T/A Fountains,OCS005,Director of Operational Services,Revenue,Premises Related Expenditure
names-and-codes-for-administrative-geography/index,Thanet District Council,29/01/2013,330308,245.50,Ocs Group Uk Ltd T/A Fountains,OCS005,Director of Operational Services,Revenue,Premises Related Expenditure
names-and-codes-for-administrative-geography/index,Thanet District Council,29/01/2013,330310,16430.23,Ocs Group Uk Ltd T/A Fountains,OCS005,Director of Corporate Services and Transformation,Balance Sheet,Current Assets
names-and-codes-for-administrative-geography/index,Thanet District Council,29/01/2013,330311,367.92,Ocs Group Uk Ltd T/A Fountains,OCS005,Director of Operational Services,Revenue,Premises Related Expenditure
names-and-codes-for-administrative-geography/index,Thanet District Council,29/01/2013,330727,1200.00,Outset Legal Llp,OUT005,East Kent Shared Services,Revenue,Supplies and Services
names-and-codes-for-administrative-geography/index,Thanet District Council,29/01/2013,330097,225.75,Ovenden Tipper Services Ltd,OVE001,Director of Operational Services,Revenue,Third Party Payments
names-and-codes-for-administrative-geography/index,Thanet District Council,29/01/2013,330200,787.15,Port Skills & Safety Ltd,POR005,Director of Operational Services,Revenue,Supplies and Services
names-and-codes-for-administrative-geography/index,Thanet District Council,29/01/2013,330324,366.15,Probrand Ltd,PRO012,East Kent Shared Services,Revenue,Supplies and Services
names-and-codes-for-administrative-geography/index,Thanet District Council,29/01/2013,330222,275.00,R J Broadley Tree Surgery,RJB002,Director of Operational Services,Revenue,Premises Related Expenditure
names-and-codes-for-administrative-geography/index,Thanet District Council,29/01/2013,330237,1749.42,Ramsay Project Management Ltd,RAM037,Director of Corporate Services and Transformation,Balance Sheet,Long Term Assets
names-and-codes-for-administrative-geography/index,Thanet District Council,29/01/2013,330372,300.00,Ramsgate Social Club & Institute Ltd,RAM010,Director of Corporate Services and Transformation,Revenue,Premises Related Expenditure
names-and-codes-for-administrative-geography/index,Thanet District Council,29/01/2013,329097,360.00,Rogers & Hambidge Ltd,ROG007,Director of Community Services,Revenue,Supplies and Services
names-and-codes-for-administrative-geography/index,Thanet District Council,29/01/2013,330095,1935.21,Royal Mail,ROY004,Director of Corporate Services and Transformation,Revenue,Supplies and Services
names-and-codes-for-administrative-geography/index,Thanet District Council,29/01/2013,330554,1853.89,Royal Mail,ROY004,Director of Corporate Services and Transformation,Revenue,Supplies and Services
names-and-codes-for-administrative-geography/index,Thanet District Council,29/01/2013,330400,455.81,Safety & Management Solutions Ltd,SAF013,Director of Operational Services,Revenue,Premises Related Expenditure
names-and-codes-for-administrative-geography/index,Thanet District Council,29/01/2013,330388,402.00,Shepway District Council,SHE001,Director of Operational Services,Revenue,Premises Related Expenditure
names-and-codes-for-administrative-geography/index,Thanet District Council,29/01/2013,330586,2200.00,Shoreline Surveys Limited,SHO001,Director of Operational Services,Revenue,Premises Related Expenditure
names-and-codes-for-administrative-geography/index,Thanet District Council,29/01/2013,330572,2767.14,Signature,SIG012,Director of Corporate Services and Transformation,Balance Sheet,Long Term Assets
names-and-codes-for-administrative-geography/index,Thanet District Council,29/01/2013,330573,1683.75,Signature,SIG012,Director of Corporate Services and Transformation,Balance Sheet,Long Term Assets
names-and-codes-for-administrative-geography/index,Thanet District Council,29/01/2013,329292,540.18,Southern Electric,SEL007,Director of Operational Services,Revenue,Premises Related Expenditure
names-and-codes-for-administrative-geography/index,Thanet District Council,29/01/2013,330340,6327.80,Southern Electric,SEL007,Director of Community Services,Revenue,Premises Related Expenditure
names-and-codes-for-administrative-geography/index,Thanet District Council,29/01/2013,330341,3897.68,Southern Electric,SEL007,Director of Community Services,Revenue,Premises Related Expenditure
names-and-codes-for-administrative-geography/index,Thanet District Council,29/01/2013,330342,1012.86,Southern Electric,SEL007,Director of Community Services,Revenue,Premises Related Expenditure
names-and-codes-for-administrative-geography/index,Thanet District Council,29/01/2013,330343,1201.65,Southern Electric,SEL007,Director of Community Services,Revenue,Premises Related Expenditure
names-and-codes-for-administrative-geography/index,Thanet District Council,29/01/2013,330345,2177.19,Southern Electric,SEL007,Director of Community Services,Revenue,Premises Related Expenditure
names-and-codes-for-administrative-geography/index,Thanet District Council,29/01/2013,330346,833.85,Southern Electric,SEL007,Director of Community Services,Revenue,Premises Related Expenditure
names-and-codes-for-administrative-geography/index,Thanet District Council,29/01/2013,330348,2594.22,Southern Electric,SEL007,Director of Community Services,Revenue,Premises Related Expenditure
names-and-codes-for-administrative-geography/index,Thanet District Council,29/01/2013,330349,1679.45,Southern Electric,SEL007,Director of Community Services,Revenue,Premises Related Expenditure
names-and-codes-for-administrative-geography/index,Thanet District Council,29/01/2013,330599,1115.54,Southern Water,SWA001,Director of Operational Services,Revenue,Premises Related Expenditure
names-and-codes-for-administrative-geography/index,Thanet District Council,29/01/2013,330600,426.13,Southern Water,SWA001,Director of Operational Services,Revenue,Premises Related Expenditure
names-and-codes-for-administrative-geography/index,Thanet District Council,29/01/2013,330601,1120.21,Southern Water,SWA001,Director of Operational Services,Revenue,Premises Related Expenditure
names-and-codes-for-administrative-geography/index,Thanet District Council,29/01/2013,330718,339.39,Sparshatts Of Kent Ltd,SPA008,Director of Operational Services,Revenue,Transport Related Expenditure
names-and-codes-for-administrative-geography/index,Thanet District Council,29/01/2013,330325,897.25,Supplies Team,SUP001,Director of Operational Services,Revenue,Premises Related Expenditure
names-and-codes-for-administrative-geography/index,Thanet District Council,29/01/2013,330326,101.92,Supplies Team,SUP001,Chief Executive and S151,Revenue,Supplies and Services
names-and-codes-for-administrative-geography/index,Thanet District Council,29/01/2013,330326,3.54,Supplies Team,SUP001,Director of Community Services,Revenue,Supplies and Services
names-and-codes-for-administrative-geography/index,Thanet District Council,29/01/2013,330326,411.80,Supplies Team,SUP001,East Kent Shared Services,Revenue,Supplies and Services
names-and-codes-for-administrative-geography/index,Thanet District Council,29/01/2013,330068,371.00,Thanet Heating Co Ltd,THE010,Director of Corporate Services and Transformation,Balance Sheet,Current Assets
names-and-codes-for-administrative-geography/index,Thanet District Council,29/01/2013,330653,387.90,Thanet Waste Services Ltd,TWA001,Director of Operational Services,Revenue,Third Party Payments
names-and-codes-for-administrative-geography/index,Thanet District Council,29/01/2013,329801,535.50,The Bay Guest House,BAY006,Director of Community Services,Revenue,Supplies and Services
names-and-codes-for-administrative-geography/index,Thanet District Council,29/01/2013,329802,501.00,The Bay Guest House,BAY006,Director of Community Services,Revenue,Supplies and Services
names-and-codes-for-administrative-geography/index,Thanet District Council,29/01/2013,330321,504.00,The Bay Guest House,BAY006,Director of Community Services,Revenue,Supplies and Services
names-and-codes-for-administrative-geography/index,Thanet District Council,29/01/2013,330067,2466.67,The Glenwood Hotel,GLE007,Director of Community Services,Revenue,Supplies and Services
names-and-codes-for-administrative-geography/index,Thanet District Council,29/01/2013,330150,4486.90,Waste Consulting Llp,WAS005,Director of Operational Services,Revenue,Supplies and Services
names-and-codes-for-administrative-geography/index,Thanet District Council,29/01/2013,330544,210.00,Watling Tyre Service Ltd,WAT003,Director of Operational Services,Revenue,Premises Related Expenditure
names-and-codes-for-administrative-geography/index,Thanet District Council,29/01/2013,330327,40.14,Westbury Industrial Supplies Ltd,WES042,Director of Community Services,Revenue,Supplies and Services
names-and-codes-for-administrative-geography/index,Thanet District Council,29/01/2013,330327,1128.75,Westbury Industrial Supplies Ltd,WES042,Director of Operational Services,Revenue,Supplies and Services
names-and-codes-for-administrative-geography/index,Thanet District Council,31/01/2013,330935,604.95,Adecco Uk Ltd,ADE005,Director of Corporate Services and Transformation,Revenue,Employees
names-and-codes-for-administrative-geography/index,Thanet District Council,31/01/2013,330936,359.70,Adecco Uk Ltd,ADE005,Director of Corporate Services and Transformation,Revenue,Employees
names-and-codes-for-administrative-geography/index,Thanet District Council,31/01/2013,330937,282.04,Adecco Uk Ltd,ADE005,Director of Corporate Services and Transformation,Revenue,Employees
names-and-codes-for-administrative-geography/index,Thanet District Council,31/01/2013,331029,4307.71,Stad Nieuwpoort,STA053,Director of Operational Services,Revenue,Supplies and Services
names-and-codes-for-administrative-geography/index,Thanet District Council,22/01/2013,329222,3182.95,Guy Hollaway Architects Llp,HOL024,Director of Corporate Services and Transformation,Balance Sheet,Long Term Assets


